Workbook

Sheet Profit & Loss
A1: ='Data Sheet'!B1 -> FIRSTSOURCE SOLUTIONS LTD | H1: =UPDATE ->  | M1: SCREENER.IN
A3: Narration | B3: ='Data Sheet'!B16 -> 2007-03-31 | C3: ='Data Sheet'!C16 -> 2008-03-31 | D3: ='Data Sheet'!D16 -> 2009-03-31 | E3: ='Data Sheet'!E16 -> 2010-03-31 | F3: ='Data Sheet'!F16 -> 2011-03-31 | G3: ='Data Sheet'!G16 -> 2012-03-31 | H3: ='Data Sheet'!H16 -> 2013-03-31 | I3: ='Data Sheet'!I16 -> 2014-03-31 | J3: ='Data Sheet'!J16 -> 2015-03-31 | K3: ='Data Sheet'!K16 -> 2016-03-31 | L3: Trailing | M3: Best Case | N3: Worst Case
A4: Sales | B4: ='Data Sheet'!B17 -> 831.02 | C4: ='Data Sheet'!C17 -> 1298.79 | D4: ='Data Sheet'!D17 -> 1749.37 | E4: ='Data Sheet'!E17 -> 1970.79 | F4: ='Data Sheet'!F17 -> 2055.28 | G4: ='Data Sheet'!G17 -> 2254.99 | H4: ='Data Sheet'!H17 -> 2818.54 | I4: ='Data Sheet'!I17 -> 3105.88 | J4: ='Data Sheet'!J17 -> 3034.65 | K4: ='Data Sheet'!K17 -> 3230.29 | L4: =SUM(Quarters!H4:K4) -> 3532.73 | M4: =$K4+M23*K4 -> 3532.73 | N4: =$K4+N23*L4 -> 3394.560845
A5: Expenses | B5: =SUM('Data Sheet'!B18,'Data Sheet'!B20:B24, -1*'Data Sheet'!B19) -> 664.2 | C5: =SUM('Data Sheet'!C18,'Data Sheet'!C20:C24, -1*'Data Sheet'!C19) -> 1064.42 | D5: =SUM('Data Sheet'!D18,'Data Sheet'!D20:D24, -1*'Data Sheet'!D19) -> 1562.2 | E5: =SUM('Data Sheet'!E18,'Data Sheet'!E20:E24, -1*'Data Sheet'!E19) -> 1692.99 | F5: =SUM('Data Sheet'!F18,'Data Sheet'!F20:F24, -1*'Data Sheet'!F19) -> 1765.72 | G5: =SUM('Data Sheet'!G18,'Data Sheet'!G20:G24, -1*'Data Sheet'!G19) -> 2059.3 | H5: =SUM('Data Sheet'!H18,'Data Sheet'!H20:H24, -1*'Data Sheet'!H19) -> 2525.33 | I5: =SUM('Data Sheet'!I18,'Data Sheet'!I20:I24, -1*'Data Sheet'!I19) -> 2734.89 | J5: =SUM('Data Sheet'!J18,'Data Sheet'!J20:J24, -1*'Data Sheet'!J19) -> 2644.86 | K5: =SUM('Data Sheet'!K18,'Data Sheet'!K20:K24, -1*'Data Sheet'!K19) -> 2817.12 | L5: =SUM(Quarters!H5:K5) -> 3082.33 | M5: =M4-M6 -> 3082.33 | N5: 3003.77514
A6: Operating Profit | B6: =B4-B5 -> 166.82 | C6: =C4-C5 -> 234.37 | D6: 187.17 | E6: 277.8 | F6: 289.56 | G6: 195.69 | H6: 293.21 | I6: 370.99 | J6: 389.79 | K6: 413.17 | L6: =SUM(Quarters!H6:K6) -> 450.4 | M6: =M4*M24 -> 450.4 | N6: =N4*N24 -> 390.7857052
A7: Other Income | B7: ='Data Sheet'!B25 -> 13.3 | C7: ='Data Sheet'!C25 -> 44.95 | D7: ='Data Sheet'!D25 -> 70.88 | E7: ='Data Sheet'!E25 -> 23.5 | F7: ='Data Sheet'!F25 -> 20.63 | G7: ='Data Sheet'!G25 -> 38.65 | H7: ='Data Sheet'!H25 -> 46.4 | I7: ='Data Sheet'!I25 -> 2 | J7: ='Data Sheet'!J25 -> 6.52 | K7: ='Data Sheet'!K25 -> 9.44 | L7: =SUM(Quarters!H7:K7) -> 5.59 | M7: 0 | N7: 0
A8: Depreciation | B8: ='Data Sheet'!B26 -> 64.15 | C8: ='Data Sheet'!C26 -> 86.08 | D8: ='Data Sheet'!D26 -> 96.13 | E8: ='Data Sheet'!E26 -> 87.26 | F8: ='Data Sheet'!F26 -> 89.08 | G8: ='Data Sheet'!G26 -> 89.26 | H8: ='Data Sheet'!H26 -> 88.4 | I8: ='Data Sheet'!I26 -> 75.7 | J8: ='Data Sheet'!J26 -> 72.18 | K8: ='Data Sheet'!K26 -> 66.2 | L8: =SUM(Quarters!H8:K8) -> 62.62 | M8: =+$L8 -> 62.62 | N8: =+$L8 -> 62.62
A9: Interest | B9: ='Data Sheet'!B27 -> 13.34 | C9: ='Data Sheet'!C27 -> 50.05 | D9: ='Data Sheet'!D27 -> 111.23 | E9: ='Data Sheet'!E27 -> 53.75 | F9: ='Data Sheet'!F27 -> 45.81 | G9: ='Data Sheet'!G27 -> 69.1 | H9: ='Data Sheet'!H27 -> 92 | I9: ='Data Sheet'!I27 -> 94.01 | J9: ='Data Sheet'!J27 -> 80.12 | K9: ='Data Sheet'!K27 -> 60.8 | L9: =SUM(Quarters!H9:K9) -> 46.87 | M9: =+$L9 -> 46.87 | N9: =+$L9 -> 46.87
A10: Profit before tax | B10: ='Data Sheet'!B28 -> 102.63 | C10: ='Data Sheet'!C28 -> 143.19 | D10: ='Data Sheet'!D28 -> 50.69 | E10: ='Data Sheet'!E28 -> 160.29 | F10: ='Data Sheet'!F28 -> 175.3 | G10: ='Data Sheet'!G28 -> 75.98 | H10: ='Data Sheet'!H28 -> 159.19 | I10: ='Data Sheet'!I28 -> 203.28 | J10: ='Data Sheet'!J28 -> 244.02 | K10: ='Data Sheet'!K28 -> 295.62 | L10: =SUM(Quarters!H10:K10) -> 346.51 | M10: =M6+M7-SUM(M8:M9) -> 340.91 | N10: =N6+N7-SUM(N8:N9) -> 281.2957052
A11: Tax | B11: ='Data Sheet'!B29 -> 6.01 | C11: ='Data Sheet'!C29 -> 12.65 | D11: ='Data Sheet'!D29 -> 19.91 | E11: ='Data Sheet'!E29 -> 23.77 | F11: ='Data Sheet'!F29 -> 34.93 | G11: ='Data Sheet'!G29 -> 13.77 | H11: ='Data Sheet'!H29 -> 12.92 | I11: ='Data Sheet'!I29 -> 10.09 | J11: ='Data Sheet'!J29 -> 9.54 | K11: ='Data Sheet'!K29 -> 30.21 | L11: =SUM(Quarters!H11:K11) -> 56.03 | M11: =IF($L10>0,$L11/$L10,0) -> 0.1616980751 | N11: =IF($L10>0,$L11/$L10,0) -> 0.1616980751
A12: Net profit | B12: ='Data Sheet'!B30 -> 97.25 | C12: ='Data Sheet'!C30 -> 131.56 | D12: ='Data Sheet'!D30 -> 30.67 | E12: ='Data Sheet'!E30 -> 136.07 | F12: ='Data Sheet'!F30 -> 138.51 | G12: ='Data Sheet'!G30 -> 62.03 | H12: ='Data Sheet'!H30 -> 146.59 | I12: ='Data Sheet'!I30 -> 192.96 | J12: ='Data Sheet'!J30 -> 234.32 | K12: ='Data Sheet'!K30 -> 264.97 | L12: =SUM(Quarters!H12:K12) -> 290.83 | M12: =M10-M11*M10 -> 285.7855092 | N12: =N10-N11*N10 -> 235.8107311
A13: EPS | B13: =IF('Data Sheet'!B93>0,B12/'Data Sheet'!B93,0) -> 2.287781527 | C13: =IF('Data Sheet'!C93>0,C12/'Data Sheet'!C93,0) -> 3.078773898 | D13: =IF('Data Sheet'!D93>0,D12/'Data Sheet'!D93,0) -> 0.7162713463 | E13: =IF('Data Sheet'!E93>0,E12/'Data Sheet'!E93,0) -> 3.170245353 | F13: =IF('Data Sheet'!F93>0,F12/'Data Sheet'!F93,0) -> 3.216389205 | G13: =IF('Data Sheet'!G93>0,G12/'Data Sheet'!G93,0) -> 1.439958489 | H13: =IF('Data Sheet'!H93>0,H12/'Data Sheet'!H93,0) -> 2.22891669 | I13: =IF('Data Sheet'!I93>0,I12/'Data Sheet'!I93,0) -> 2.924811251 | J13: =IF('Data Sheet'!J93>0,J12/'Data Sheet'!J93,0) -> 3.516779284 | K13: =IF('Data Sheet'!K93>0,K12/'Data Sheet'!K93,0) -> 3.935305684 | L13: =IF('Data Sheet'!$B6>0,'Profit & Loss'!L12/'Data Sheet'!$B6,0) -> 4.289278202 | M13: =IF('Data Sheet'!$B6>0,'Profit & Loss'!M12/'Data Sheet'!$B6,0) -> 4.214880016 | N13: =IF('Data Sheet'!$B6>0,'Profit & Loss'!N12/'Data Sheet'!$B6,0) -> 3.477831822
A14: Price to earning | B14: =IF(B15>0,B15/B13,"") -> 33.77944925 | C14: =IF(C15>0,C15/C13,"") -> 13.46315169 | D14: 24.13889665 | E14: 9.699564725 | F14: 6.028499277 | G14: 6.777973168 | H14: 4.809511297 | I14: 9.887817542 | J14: 8.965589665 | K14: 9.19877715 | L14: =IF(L13>0,L15/L13,0) -> 10.03665372 | M14: =M25 -> 10.03665372 | N14: =N25 -> 8.175548318
A15: Price | B15: ='Data Sheet'!B90 -> 77.28 | C15: ='Data Sheet'!C90 -> 41.45 | D15: ='Data Sheet'!D90 -> 17.29 | E15: ='Data Sheet'!E90 -> 30.75 | F15: ='Data Sheet'!F90 -> 19.39 | G15: ='Data Sheet'!G90 -> 9.76 | H15: ='Data Sheet'!H90 -> 10.72 | I15: ='Data Sheet'!I90 -> 28.92 | J15: ='Data Sheet'!J90 -> 31.53 | K15: ='Data Sheet'!K90 -> 36.2 | L15: ='Data Sheet'!B8 -> 43.05 | M15: =M13*M14 -> 42.30329117 | N15: =N13*N14 -> 28.4331821
A17: RATIOS:
A18: Dividend Payout | B18: =IF('Data Sheet'!B30>0, 'Data Sheet'!B31/'Data Sheet'!B30, 0) -> 0 | C18: =IF('Data Sheet'!C30>0, 'Data Sheet'!C31/'Data Sheet'!C30, 0) -> 0 | D18: =IF('Data Sheet'!D30>0, 'Data Sheet'!D31/'Data Sheet'!D30, 0) -> 0 | E18: =IF('Data Sheet'!E30>0, 'Data Sheet'!E31/'Data Sheet'!E30, 0) -> 0 | F18: =IF('Data Sheet'!F30>0, 'Data Sheet'!F31/'Data Sheet'!F30, 0) -> 0 | G18: =IF('Data Sheet'!G30>0, 'Data Sheet'!G31/'Data Sheet'!G30, 0) -> 0 | H18: =IF('Data Sheet'!H30>0, 'Data Sheet'!H31/'Data Sheet'!H30, 0) -> 0 | I18: =IF('Data Sheet'!I30>0, 'Data Sheet'!I31/'Data Sheet'!I30, 0) -> 0 | J18: =IF('Data Sheet'!J30>0, 'Data Sheet'!J31/'Data Sheet'!J30, 0) -> 0 | K18: =IF('Data Sheet'!K30>0, 'Data Sheet'!K31/'Data Sheet'!K30, 0) -> 0
A19: OPM | B19: =IF(B6>0,B6/B4,0) -> 0.2007412577 | C19: =IF(C6>0,C6/C4,0) -> 0.1804525751 | D19: 0.1069928031 | E19: 0.1409587018 | F19: 0.1408859134 | G19: 0.08678087264 | H19: 0.1040290363 | I19: 0.1194476284 | J19: 0.1284464436 | K19: 0.1279049249 | L19: 0.1274934682
G22: TRENDS: | H22: 10 YEARS | I22: 7 YEARS | J22: 5 YEARS | K22: 3 YEARS | L22: RECENT | M22: BEST | N22: WORST
G23: Sales Growth | H23: =IF(B4=0,"",POWER($K4/B4,1/9)-1) -> 0.1628252364 | I23: =IF(D4=0,"",POWER($K4/D4,1/7)-1) -> 0.091569533 | J23: =IF(F4=0,"",POWER($K4/F4,1/5)-1) -> 0.09464703075 | K23: =IF(H4=0,"",POWER($K4/H4, 1/3)-1) -> 0.04649968863 | L23: =IF(ISERROR(MAX(IF(J4=0,"",(K4-J4)/J4),IF(K4=0,"",(L4-K4)/K4))),"",MAX(IF(J4=0,"",(K4-J4)/J4),IF(K4=0,"",(L4-K4)/K4))) -> 0.09362626885 | M23: =MAX(K23:L23) -> 0.09362626885 | N23: =MIN(H23:L23) -> 0.04649968863
G24: OPM | H24: =IF(SUM(B4:$K$4)=0,"",SUMPRODUCT(B19:$K$19,B4:$K$4)/SUM(B4:$K$4)) -> 0.1261127716 | I24: =IF(SUM(E4:$K$4)=0,"",SUMPRODUCT(E19:$K$19,E4:$K$4)/SUM(E4:$K$4)) -> 0.1207449533 | J24: =IF(SUM(G4:$K$4)=0,"",SUMPRODUCT(G19:$K$19,G4:$K$4)/SUM(G4:$K$4)) -> 0.1151211373 | K24: =IF(SUM(I4:$K$4)=0, "", SUMPRODUCT(I19:$K$19,I4:$K$4)/SUM(I4:$K$4)) -> 0.1252771903 | L24: =L19 -> 0.1274934682 | M24: =MAX(K24:L24) -> 0.1274934682 | N24: =MIN(H24:L24) -> 0.1151211373
G25: Price to Earning | H25: =IF(ISERROR(AVERAGEIF(B14:$L14,">0")),"",AVERAGEIF(B14:$L14,">0")) -> 12.43508037 | I25: =IF(ISERROR(AVERAGEIF(E14:$L14,">0")),"",AVERAGEIF(E14:$L14,">0")) -> 8.175548318 | J25: =IF(ISERROR(AVERAGEIF(G14:$L14,">0")),"",AVERAGEIF(G14:$L14,">0")) -> 8.27938709 | K25: =IF(ISERROR(AVERAGEIF(I14:$L14,">0")),"",AVERAGEIF(I14:$L14,">0")) -> 9.522209518 | L25: =L14 -> 10.03665372 | M25: =MAX(K25:L25) -> 10.03665372 | N25: =MIN(H25:L25) -> 8.175548318

Sheet Quarters
A1: ='Profit & Loss'!A1 -> FIRSTSOURCE SOLUTIONS LTD | E1: =UPDATE ->  | J1: SCREENER.IN
A3: Narration | B3: ='Data Sheet'!B41 -> 2014-09-30 | C3: ='Data Sheet'!C41 -> 2014-12-31 | D3: ='Data Sheet'!D41 -> 2015-03-31 | E3: ='Data Sheet'!E41 -> 2015-06-30 | F3: ='Data Sheet'!F41 -> 2015-09-30 | G3: ='Data Sheet'!G41 -> 2015-12-31 | H3: ='Data Sheet'!H41 -> 2016-03-31 | I3: ='Data Sheet'!I41 -> 2016-06-30 | J3: ='Data Sheet'!J41 -> 2016-09-30 | K3: ='Data Sheet'!K41 -> 2016-12-31
A4: Sales | B4: ='Data Sheet'!B42 -> 773.99 | C4: ='Data Sheet'!C42 -> 751.02 | D4: ='Data Sheet'!D42 -> 754.05 | E4: ='Data Sheet'!E42 -> 741.43 | F4: ='Data Sheet'!F42 -> 787.8 | G4: ='Data Sheet'!G42 -> 818.6 | H4: ='Data Sheet'!H42 -> 869.43 | I4: ='Data Sheet'!I42 -> 893.54 | J4: ='Data Sheet'!J42 -> 884.35 | K4: ='Data Sheet'!K42 -> 885.41
A5: Expenses | B5: ='Data Sheet'!B43 -> 679.11 | C5: ='Data Sheet'!C43 -> 657.47 | D5: ='Data Sheet'!D43 -> 654.75 | E5: ='Data Sheet'!E43 -> 657.3 | F5: ='Data Sheet'!F43 -> 694.26 | G5: ='Data Sheet'!G43 -> 717.29 | H5: ='Data Sheet'!H43 -> 758 | I5: ='Data Sheet'!I43 -> 774.31 | J5: ='Data Sheet'!J43 -> 771.78 | K5: ='Data Sheet'!K43 -> 778.24
A6: Operating Profit | B6: ='Data Sheet'!B50 -> 94.88 | C6: ='Data Sheet'!C50 -> 93.55 | D6: ='Data Sheet'!D50 -> 99.3 | E6: ='Data Sheet'!E50 -> 84.13 | F6: ='Data Sheet'!F50 -> 93.54 | G6: ='Data Sheet'!G50 -> 101.31 | H6: ='Data Sheet'!H50 -> 111.43 | I6: ='Data Sheet'!I50 -> 119.23 | J6: ='Data Sheet'!J50 -> 112.57 | K6: ='Data Sheet'!K50 -> 107.17
A7: Other Income | B7: ='Data Sheet'!B44 -> 4.7 | C7: ='Data Sheet'!C44 -> 2.47 | D7: ='Data Sheet'!D44 -> 0.38 | E7: ='Data Sheet'!E44 -> 4.54 | F7: ='Data Sheet'!F44 -> 0.92 | G7: ='Data Sheet'!G44 -> 2.06 | H7: ='Data Sheet'!H44 -> 1.93 | I7: ='Data Sheet'!I44 -> 1.86 | J7: ='Data Sheet'!J44 -> 0.39 | K7: ='Data Sheet'!K44 -> 1.41
A8: Depreciation | B8: ='Data Sheet'!B45 -> 17.73 | C8: ='Data Sheet'!C45 -> 18.93 | D8: ='Data Sheet'!D45 -> 17.98 | E8: ='Data Sheet'!E45 -> 17.21 | F8: ='Data Sheet'!F45 -> 18.3 | G8: ='Data Sheet'!G45 -> 15.99 | H8: ='Data Sheet'!H45 -> 14.7 | I8: ='Data Sheet'!I45 -> 16.3 | J8: ='Data Sheet'!J45 -> 16.05 | K8: ='Data Sheet'!K45 -> 15.57
A9: Interest | B9: ='Data Sheet'!B46 -> 18.07 | C9: ='Data Sheet'!C46 -> 17.27 | D9: ='Data Sheet'!D46 -> 17.37 | E9: ='Data Sheet'!E46 -> 14.27 | F9: ='Data Sheet'!F46 -> 13.06 | G9: ='Data Sheet'!G46 -> 12.45 | H9: ='Data Sheet'!H46 -> 12.97 | I9: ='Data Sheet'!I46 -> 13.16 | J9: ='Data Sheet'!J46 -> 10.86 | K9: ='Data Sheet'!K46 -> 9.88
A10: Profit before tax | B10: ='Data Sheet'!B47 -> 63.77 | C10: ='Data Sheet'!C47 -> 59.83 | D10: ='Data Sheet'!D47 -> 64.32 | E10: ='Data Sheet'!E47 -> 57.19 | F10: ='Data Sheet'!F47 -> 63.09 | G10: ='Data Sheet'!G47 -> 74.92 | H10: ='Data Sheet'!H47 -> 85.69 | I10: ='Data Sheet'!I47 -> 91.64 | J10: ='Data Sheet'!J47 -> 86.06 | K10: ='Data Sheet'!K47 -> 83.12
A11: Tax | B11: ='Data Sheet'!B48 -> 2.47 | C11: ='Data Sheet'!C48 -> 2.12 | D11: ='Data Sheet'!D48 -> 2.17 | E11: ='Data Sheet'!E48 -> 4.17 | F11: ='Data Sheet'!F48 -> 4.29 | G11: ='Data Sheet'!G48 -> 7.29 | H11: ='Data Sheet'!H48 -> 9.54 | I11: ='Data Sheet'!I48 -> 18.27 | J11: ='Data Sheet'!J48 -> 14.86 | K11: ='Data Sheet'!K48 -> 13.36
A12: Net profit | B12: ='Data Sheet'!B49 -> 61.24 | C12: ='Data Sheet'!C49 -> 57.51 | D12: ='Data Sheet'!D49 -> 62.32 | E12: ='Data Sheet'!E49 -> 52.87 | F12: ='Data Sheet'!F49 -> 58.66 | G12: ='Data Sheet'!G49 -> 67.45 | H12: ='Data Sheet'!H49 -> 76.2 | I12: ='Data Sheet'!I49 -> 73.36 | J12: ='Data Sheet'!J49 -> 71.26 | K12: ='Data Sheet'!K49 -> 70.01
A14: OPM | B14: =IF(B4>0,B6/B4,"") -> 0.1225855631 | C14: =IF(C4>0,C6/C4,"") -> 0.1245639264 | D14: 0.13168888 | E14: 0.1134699162 | F14: 0.1187357197 | G14: 0.1237600782 | H14: 0.1281644296 | I14: 0.1334355485 | J14: 0.1272912308 | K14: 0.1210399702

Sheet Balance Sheet
A1: ='Profit & Loss'!A1 -> FIRSTSOURCE SOLUTIONS LTD | E1: =UPDATE ->  | J1: SCREENER.IN
A3: Narration | B3: ='Data Sheet'!B56 -> 2007-03-31 | C3: ='Data Sheet'!C56 -> 2008-03-31 | D3: ='Data Sheet'!D56 -> 2009-03-31 | E3: ='Data Sheet'!E56 -> 2010-03-31 | F3: ='Data Sheet'!F56 -> 2011-03-31 | G3: ='Data Sheet'!G56 -> 2012-03-31 | H3: ='Data Sheet'!H56 -> 2013-03-31 | I3: ='Data Sheet'!I56 -> 2014-03-31 | J3: ='Data Sheet'!J56 -> 2015-03-31 | K3: ='Data Sheet'!K56 -> 2016-03-31
A4: Equity Share Capital | B4: ='Data Sheet'!B57 -> 425.08 | C4: ='Data Sheet'!C57 -> 427.31 | D4: ='Data Sheet'!D57 -> 428.19 | E4: ='Data Sheet'!E57 -> 429.21 | F4: ='Data Sheet'!F57 -> 430.64 | G4: ='Data Sheet'!G57 -> 430.78 | H4: ='Data Sheet'!H57 -> 657.67 | I4: ='Data Sheet'!I57 -> 659.74 | J4: ='Data Sheet'!J57 -> 666.29 | K4: ='Data Sheet'!K57 -> 673.32
A5: Reserves | B5: ='Data Sheet'!B58 -> 641.47 | C5: ='Data Sheet'!C58 -> 312.73 | D5: ='Data Sheet'!D58 -> 951.24 | E5: ='Data Sheet'!E58 -> 994.81 | F5: ='Data Sheet'!F58 -> 992.08 | G5: ='Data Sheet'!G58 -> 999.11 | H5: ='Data Sheet'!H58 -> 1055.96 | I5: ='Data Sheet'!I58 -> 1431.69 | J5: ='Data Sheet'!J58 -> 1422.33 | K5: ='Data Sheet'!K58 -> 1751.77
A6: Borrowings | B6: ='Data Sheet'!B59 -> 197.59 | C6: ='Data Sheet'!C59 -> 1255.18 | D6: ='Data Sheet'!D59 -> 1394.56 | E6: ='Data Sheet'!E59 -> 1357.85 | F6: ='Data Sheet'!F59 -> 1493.27 | G6: ='Data Sheet'!G59 -> 2111.75 | H6: ='Data Sheet'!H59 -> 1276.41 | I6: ='Data Sheet'!I59 -> 1188.75 | J6: ='Data Sheet'!J59 -> 1031.4 | K6: ='Data Sheet'!K59 -> 905.93
A7: Other Liabilities | B7: ='Data Sheet'!B60 -> 153.61 | C7: ='Data Sheet'!C60 -> 641.97 | D7: ='Data Sheet'!D60 -> 327.78 | E7: ='Data Sheet'!E60 -> 287.24 | F7: ='Data Sheet'!F60 -> 409.47 | G7: ='Data Sheet'!G60 -> 503.71 | H7: ='Data Sheet'!H60 -> 512.49 | I7: ='Data Sheet'!I60 -> 544.89 | J7: ='Data Sheet'!J60 -> 471.76 | K7: ='Data Sheet'!K60 -> 531.38
A8: Total | B8: ='Data Sheet'!B61 -> 1417.75 | C8: ='Data Sheet'!C61 -> 2637.19 | D8: ='Data Sheet'!D61 -> 3101.77 | E8: ='Data Sheet'!E61 -> 3069.11 | F8: ='Data Sheet'!F61 -> 3325.46 | G8: ='Data Sheet'!G61 -> 4045.35 | H8: ='Data Sheet'!H61 -> 3502.53 | I8: ='Data Sheet'!I61 -> 3825.07 | J8: ='Data Sheet'!J61 -> 3591.78 | K8: ='Data Sheet'!K61 -> 3862.4
A10: Net Block | B10: ='Data Sheet'!B62 -> 713.94 | C10: ='Data Sheet'!C62 -> 2101.69 | D10: ='Data Sheet'!D62 -> 2506.64 | E10: ='Data Sheet'!E62 -> 2248.38 | F10: ='Data Sheet'!F62 -> 2262.8 | G10: ='Data Sheet'!G62 -> 2497.91 | H10: ='Data Sheet'!H62 -> 2514.44 | I10: ='Data Sheet'!I62 -> 2730.43 | J10: ='Data Sheet'!J62 -> 2443.93 | K10: ='Data Sheet'!K62 -> 2602.02
A11: Capital Work in Progress | B11: ='Data Sheet'!B63 -> 8.2 | C11: ='Data Sheet'!C63 -> 8.92 | D11: ='Data Sheet'!D63 -> 7.02 | E11: ='Data Sheet'!E63 -> 8.01 | F11: ='Data Sheet'!F63 -> 10.95 | G11: ='Data Sheet'!G63 -> 8.67 | H11: ='Data Sheet'!H63 -> 1.82 | I11: ='Data Sheet'!I63 -> 0.4 | J11: ='Data Sheet'!J63 -> 8.47 | K11: ='Data Sheet'!K63 -> 7.88
A12: Investments | B12: ='Data Sheet'!B64 -> 115.25 | C12: ='Data Sheet'!C64 -> 22.12 | D12: ='Data Sheet'!D64 -> 1.82 | E12: ='Data Sheet'!E64 -> 100.53 | F12: ='Data Sheet'!F64 -> 132.93 | G12: ='Data Sheet'!G64 -> 80.03 | H12: ='Data Sheet'!H64 -> 2.68 | I12: ='Data Sheet'!I64 -> 5.24 | J12: ='Data Sheet'!J64 -> 73.37 | K12: ='Data Sheet'!K64 -> 85.15
A13: Other Assets | B13: ='Data Sheet'!B65 -> 580.36 | C13: ='Data Sheet'!C65 -> 504.46 | D13: ='Data Sheet'!D65 -> 586.29 | E13: ='Data Sheet'!E65 -> 712.19 | F13: ='Data Sheet'!F65 -> 918.78 | G13: ='Data Sheet'!G65 -> 1458.74 | H13: ='Data Sheet'!H65 -> 983.59 | I13: ='Data Sheet'!I65 -> 1089 | J13: ='Data Sheet'!J65 -> 1066.01 | K13: ='Data Sheet'!K65 -> 1167.35
A14: Total | B14: ='Data Sheet'!B66 -> 1417.75 | C14: ='Data Sheet'!C66 -> 2637.19 | D14: ='Data Sheet'!D66 -> 3101.77 | E14: ='Data Sheet'!E66 -> 3069.11 | F14: ='Data Sheet'!F66 -> 3325.46 | G14: ='Data Sheet'!G66 -> 4045.35 | H14: ='Data Sheet'!H66 -> 3502.53 | I14: ='Data Sheet'!I66 -> 3825.07 | J14: ='Data Sheet'!J66 -> 3591.78 | K14: ='Data Sheet'!K66 -> 3862.4
A16: Working Capital | B16: =B13-B7 -> 426.75 | C16: -137.51 | D16: 258.51 | E16: 424.95 | F16: 509.31 | G16: 955.03 | H16: 471.1 | I16: 544.11 | J16: 594.25 | K16: 635.97
A17: Debtors | B17: ='Data Sheet'!B67 -> 133.54 | C17: ='Data Sheet'!C67 -> 205.38 | D17: ='Data Sheet'!D67 -> 237.95 | E17: ='Data Sheet'!E67 -> 261.06 | F17: ='Data Sheet'!F67 -> 238.87 | G17: ='Data Sheet'!G67 -> 351.47 | H17: ='Data Sheet'!H67 -> 386.58 | I17: ='Data Sheet'!I67 -> 301.93 | J17: ='Data Sheet'!J67 -> 288.95 | K17: ='Data Sheet'!K67 -> 304.08
A18: Inventory | B18: ='Data Sheet'!B68 -> 0 | C18: ='Data Sheet'!C68 -> 0 | D18: ='Data Sheet'!D68 -> 0 | E18: ='Data Sheet'!E68 -> 0 | F18: ='Data Sheet'!F68 -> 0 | G18: ='Data Sheet'!G68 -> 0 | H18: ='Data Sheet'!H68 -> 0 | I18: ='Data Sheet'!I68 -> 0 | J18: ='Data Sheet'!J68 -> 0 | K18: ='Data Sheet'!K68 -> 0
A21: Inventory Turnover | B21: =IF('Balance Sheet'!B18>0,'Profit & Loss'!B4/'Balance Sheet'!B18,0) -> 0 | C21: =IF('Balance Sheet'!C18>0,'Profit & Loss'!C4/'Balance Sheet'!C18,0) -> 0 | D21: =IF('Balance Sheet'!D18>0,'Profit & Loss'!D4/'Balance Sheet'!D18,0) -> 0 | E21: =IF('Balance Sheet'!E18>0,'Profit & Loss'!E4/'Balance Sheet'!E18,0) -> 0 | F21: =IF('Balance Sheet'!F18>0,'Profit & Loss'!F4/'Balance Sheet'!F18,0) -> 0 | G21: =IF('Balance Sheet'!G18>0,'Profit & Loss'!G4/'Balance Sheet'!G18,0) -> 0 | H21: =IF('Balance Sheet'!H18>0,'Profit & Loss'!H4/'Balance Sheet'!H18,0) -> 0 | I21: =IF('Balance Sheet'!I18>0,'Profit & Loss'!I4/'Balance Sheet'!I18,0) -> 0 | J21: =IF('Balance Sheet'!J18>0,'Profit & Loss'!J4/'Balance Sheet'!J18,0) -> 0 | K21: =IF('Balance Sheet'!K18>0,'Profit & Loss'!K4/'Balance Sheet'!K18,0) -> 0
A22: Inventory Days | B22: =IF('Profit & Loss'!B4>0,'Balance Sheet'!B18/('Profit & Loss'!B4/365),0) -> 0 | C22: =IF('Profit & Loss'!C4>0,'Balance Sheet'!C18/('Profit & Loss'!C4/365),0) -> 0 | D22: =IF('Profit & Loss'!D4>0,'Balance Sheet'!D18/('Profit & Loss'!D4/365),0) -> 0 | E22: =IF('Profit & Loss'!E4>0,'Balance Sheet'!E18/('Profit & Loss'!E4/365),0) -> 0 | F22: =IF('Profit & Loss'!F4>0,'Balance Sheet'!F18/('Profit & Loss'!F4/365),0) -> 0 | G22: =IF('Profit & Loss'!G4>0,'Balance Sheet'!G18/('Profit & Loss'!G4/365),0) -> 0 | H22: =IF('Profit & Loss'!H4>0,'Balance Sheet'!H18/('Profit & Loss'!H4/365),0) -> 0 | I22: =IF('Profit & Loss'!I4>0,'Balance Sheet'!I18/('Profit & Loss'!I4/365),0) -> 0 | J22: =IF('Profit & Loss'!J4>0,'Balance Sheet'!J18/('Profit & Loss'!J4/365),0) -> 0 | K22: =IF('Profit & Loss'!K4>0,'Balance Sheet'!K18/('Profit & Loss'!K4/365),0) -> 0
A23: Debtor Days | B23: =IF('Profit & Loss'!B4>0,'Balance Sheet'!B17/('Profit & Loss'!B4/365),0) -> 58.65334168 | C23: =IF('Profit & Loss'!C4>0,'Balance Sheet'!C17/('Profit & Loss'!C4/365),0) -> 57.71810685 | D23: =IF('Profit & Loss'!D4>0,'Balance Sheet'!D17/('Profit & Loss'!D4/365),0) -> 49.64744451 | E23: =IF('Profit & Loss'!E4>0,'Balance Sheet'!E17/('Profit & Loss'!E4/365),0) -> 48.34959585 | F23: =IF('Profit & Loss'!F4>0,'Balance Sheet'!F17/('Profit & Loss'!F4/365),0) -> 42.42125161 | G23: =IF('Profit & Loss'!G4>0,'Balance Sheet'!G17/('Profit & Loss'!G4/365),0) -> 56.8900749 | H23: =IF('Profit & Loss'!H4>0,'Balance Sheet'!H17/('Profit & Loss'!H4/365),0) -> 50.06198244 | I23: =IF('Profit & Loss'!I4>0,'Balance Sheet'!I17/('Profit & Loss'!I4/365),0) -> 35.48252025 | J23: =IF('Profit & Loss'!J4>0,'Balance Sheet'!J17/('Profit & Loss'!J4/365),0) -> 34.75417264 | K23: =IF('Profit & Loss'!K4>0,'Balance Sheet'!K17/('Profit & Loss'!K4/365),0) -> 34.35889657
A24: Creditor Days | B24: =IF('Profit & Loss'!B4>0,'Calculated Data'!B3/('Profit & Loss'!B4/365),0) -> 0 | C24: =IF('Profit & Loss'!C4>0,'Calculated Data'!C3/('Profit & Loss'!C4/365),0) -> 0 | D24: =IF('Profit & Loss'!D4>0,'Calculated Data'!D3/('Profit & Loss'!D4/365),0) -> 0 | E24: =IF('Profit & Loss'!E4>0,'Calculated Data'!E3/('Profit & Loss'!E4/365),0) -> 0 | F24: =IF('Profit & Loss'!F4>0,'Calculated Data'!F3/('Profit & Loss'!F4/365),0) -> 0 | G24: =IF('Profit & Loss'!G4>0,'Calculated Data'!G3/('Profit & Loss'!G4/365),0) -> 0 | H24: =IF('Profit & Loss'!H4>0,'Calculated Data'!H3/('Profit & Loss'!H4/365),0) -> 0 | I24: =IF('Profit & Loss'!I4>0,'Calculated Data'!I3/('Profit & Loss'!I4/365),0) -> 0 | J24: =IF('Profit & Loss'!J4>0,'Calculated Data'!J3/('Profit & Loss'!J4/365),0) -> 0 | K24: =IF('Profit & Loss'!K4>0,'Calculated Data'!K3/('Profit & Loss'!K4/365),0) -> 0 | L24: input creditors data in Calculated data sheet
A25: Cash Conversion Cycle | E25: =E22+E23-E24 -> 48.34959585 | F25: =F22+F23-F24 -> 42.42125161 | G25: 56.8900749 | H25: 50.06198244 | I25: 35.48252025 | J25: 34.75417264 | K25: 34.35889657 | L25: ? Check for creditors data input
A27: Return on Equity | B27: =IF(SUM('Balance Sheet'!B4:B5)>0,'Profit & Loss'!B12/SUM('Balance Sheet'!B4:B5),"") -> 0.09118184801 | C27: =IF(SUM('Balance Sheet'!C4:C5)>0,'Profit & Loss'!C12/SUM('Balance Sheet'!C4:C5),"") -> 0.1777741744 | D27: =IF(SUM('Balance Sheet'!D4:D5)>0,'Profit & Loss'!D12/SUM('Balance Sheet'!D4:D5),"") -> 0.02223382122 | E27: =IF(SUM('Balance Sheet'!E4:E5)>0,'Profit & Loss'!E12/SUM('Balance Sheet'!E4:E5),"") -> 0.09555343324 | F27: =IF(SUM('Balance Sheet'!F4:F5)>0,'Profit & Loss'!F12/SUM('Balance Sheet'!F4:F5),"") -> 0.09735576923 | G27: =IF(SUM('Balance Sheet'!G4:G5)>0,'Profit & Loss'!G12/SUM('Balance Sheet'!G4:G5),"") -> 0.04338095937 | H27: =IF(SUM('Balance Sheet'!H4:H5)>0,'Profit & Loss'!H12/SUM('Balance Sheet'!H4:H5),"") -> 0.08554355374 | I27: =IF(SUM('Balance Sheet'!I4:I5)>0,'Profit & Loss'!I12/SUM('Balance Sheet'!I4:I5),"") -> 0.09226223206 | J27: =IF(SUM('Balance Sheet'!J4:J5)>0,'Profit & Loss'!J12/SUM('Balance Sheet'!J4:J5),"") -> 0.1121889094 | K27: =IF(SUM('Balance Sheet'!K4:K5)>0,'Profit & Loss'!K12/SUM('Balance Sheet'!K4:K5),"") -> 0.1092619243
A28: Return on Capital Emp | B28: =IF(('Balance Sheet'!B10+'Balance Sheet'!B16)>0,('Profit & Loss'!B6-'Profit & Loss'!B8-'Profit & Loss'!B11)/('Balance Sheet'!B10+'Balance Sheet'!B16),"") -> 0.08473818478 | C28: =IF(('Balance Sheet'!C10+'Balance Sheet'!C16)>0,('Profit & Loss'!C6-'Profit & Loss'!C8-'Profit & Loss'!C11)/('Balance Sheet'!C10+'Balance Sheet'!C16),"") -> 0.06905680742 | D28: =IF(('Balance Sheet'!D10+'Balance Sheet'!D16)>0,('Profit & Loss'!D6-'Profit & Loss'!D8-'Profit & Loss'!D11)/('Balance Sheet'!D10+'Balance Sheet'!D16),"") -> 0.02572374012 | E28: =IF(('Balance Sheet'!E10+'Balance Sheet'!E16)>0,('Profit & Loss'!E6-'Profit & Loss'!E8-'Profit & Loss'!E11)/('Balance Sheet'!E10+'Balance Sheet'!E16),"") -> 0.0623828708 | F28: =IF(('Balance Sheet'!F10+'Balance Sheet'!F16)>0,('Profit & Loss'!F6-'Profit & Loss'!F8-'Profit & Loss'!F11)/('Balance Sheet'!F10+'Balance Sheet'!F16),"") -> 0.05971985239 | G28: =IF(('Balance Sheet'!G10+'Balance Sheet'!G16)>0,('Profit & Loss'!G6-'Profit & Loss'!G8-'Profit & Loss'!G11)/('Balance Sheet'!G10+'Balance Sheet'!G16),"") -> 0.02683510284 | H28: =IF(('Balance Sheet'!H10+'Balance Sheet'!H16)>0,('Profit & Loss'!H6-'Profit & Loss'!H8-'Profit & Loss'!H11)/('Balance Sheet'!H10+'Balance Sheet'!H16),"") -> 0.06427312982 | I28: =IF(('Balance Sheet'!I10+'Balance Sheet'!I16)>0,('Profit & Loss'!I6-'Profit & Loss'!I8-'Profit & Loss'!I11)/('Balance Sheet'!I10+'Balance Sheet'!I16),"") -> 0.08709620283 | J28: =IF(('Balance Sheet'!J10+'Balance Sheet'!J16)>0,('Profit & Loss'!J6-'Profit & Loss'!J8-'Profit & Loss'!J11)/('Balance Sheet'!J10+'Balance Sheet'!J16),"") -> 0.1013995221 | K28: =IF(('Balance Sheet'!K10+'Balance Sheet'!K16)>0,('Profit & Loss'!K6-'Profit & Loss'!K8-'Profit & Loss'!K11)/('Balance Sheet'!K10+'Balance Sheet'!K16),"") -> 0.09782612053
A32: Common Size Balance Sheet | B32: =B3 -> 2007-03-31 | C32: 2008-03-31 | D32: 2009-03-31 | E32: 2010-03-31 | F32: 2011-03-31 | G32: 2012-03-31 | H32: 2013-03-31 | I32: 2014-03-31 | J32: 2015-03-31 | K32: 2016-03-31 | L32: Check back how Assets are being put to use
A33: Net Block/Total Assets | B33: =B10/B$8 -> 0.5035725622 | C33: 0.7969429582 | D33: 0.808132131 | E33: 0.7325837132 | F33: 0.6804472163 | G33: 0.6174768561 | H33: 0.7178924949 | I33: 0.713824845 | J33: 0.6804230771 | K33: 0.6736795775
A34: Working Capital/Total Assets | B34: =B16/B$8 -> 0.3010051137 | C34: -0.0521426215 | D34: 0.08334273657 | E34: 0.1384603354 | F34: 0.1531547515 | G34: 0.2360809324 | H34: 0.1345027737 | I34: 0.1422483772 | J34: 0.1654472156 | K34: 0.1646566901
A35: Debtors/Total Assets | B35: =B17/B$8 -> 0.09419150062 | C35: 0.07787834779 | D35: 0.07671426315 | E35: 0.08506048985 | F35: 0.07183066403 | G35: 0.08688247 | H35: 0.1103716456 | I35: 0.07893450316 | J35: 0.08044757752 | K35: 0.07872825186
A36: Inventory/Total Assets | B36: =B18/B$8 -> 0 | C36: 0 | D36: 0 | E36: 0 | F36: 0 | G36: 0 | H36: 0 | I36: 0 | J36: 0 | K36: 0
A38: Borrowings/Total Assets | B38: =B6/B$8 -> 0.139368718 | C38: 0.4759535718 | D38: 0.4496013566 | E38: 0.4424246769 | F38: 0.4490416363 | G38: 0.5220191084 | H38: 0.3644251441 | I38: 0.3107786263 | J38: 0.2871556721 | K38: 0.2345510563

Sheet Cash Flow
A1: ='Balance Sheet'!A1 -> FIRSTSOURCE SOLUTIONS LTD | E1: =UPDATE ->  | J1: SCREENER.IN
A3: Narration | B3: ='Data Sheet'!B81 -> 2007-03-31 | C3: ='Data Sheet'!C81 -> 2008-03-31 | D3: ='Data Sheet'!D81 -> 2009-03-31 | E3: ='Data Sheet'!E81 -> 2010-03-31 | F3: ='Data Sheet'!F81 -> 2011-03-31 | G3: ='Data Sheet'!G81 -> 2012-03-31 | H3: ='Data Sheet'!H81 -> 2013-03-31 | I3: ='Data Sheet'!I81 -> 2014-03-31 | J3: ='Data Sheet'!J81 -> 2015-03-31 | K3: ='Data Sheet'!K81 -> 2016-03-31
A4: Cash from Operating Activity | B4: ='Data Sheet'!B82 -> 91.37 | C4: ='Data Sheet'!C82 -> 226.85 | D4: ='Data Sheet'!D82 -> 174.71 | E4: ='Data Sheet'!E82 -> 171.57 | F4: ='Data Sheet'!F82 -> 245.7 | G4: ='Data Sheet'!G82 -> 5.68 | H4: ='Data Sheet'!H82 -> 199.28 | I4: ='Data Sheet'!I82 -> 395.57 | J4: ='Data Sheet'!J82 -> 246.05 | K4: ='Data Sheet'!K82 -> 299.73
A5: Cash from Investing Activity | B5: ='Data Sheet'!B83 -> -404.63 | C5: ='Data Sheet'!C83 -> -1415.23 | D5: ='Data Sheet'!D83 -> -88.03 | E5: ='Data Sheet'!E83 -> -147.22 | F5: ='Data Sheet'!F83 -> -59.69 | G5: ='Data Sheet'!G83 -> -475.73 | H5: ='Data Sheet'!H83 -> 583.34 | I5: ='Data Sheet'!I83 -> -13.28 | J5: ='Data Sheet'!J83 -> -104.24 | K5: ='Data Sheet'!K83 -> -103.69
A6: Cash from Financing Activity | B6: ='Data Sheet'!B84 -> 597.23 | C6: ='Data Sheet'!C84 -> 989.85 | D6: ='Data Sheet'!D84 -> -92.45 | E6: ='Data Sheet'!E84 -> 0.71 | F6: ='Data Sheet'!F84 -> 16.86 | G6: ='Data Sheet'!G84 -> 332.81 | H6: ='Data Sheet'!H84 -> -881.06 | I6: ='Data Sheet'!I84 -> -286.41 | J6: ='Data Sheet'!J84 -> -246.45 | K6: ='Data Sheet'!K84 -> -207.44
A7: Net Cash Flow | B7: ='Data Sheet'!B85 -> 283.97 | C7: ='Data Sheet'!C85 -> -198.53 | D7: ='Data Sheet'!D85 -> -5.77 | E7: ='Data Sheet'!E85 -> 25.06 | F7: ='Data Sheet'!F85 -> 202.87 | G7: ='Data Sheet'!G85 -> -137.24 | H7: ='Data Sheet'!H85 -> -98.44 | I7: ='Data Sheet'!I85 -> 95.88 | J7: ='Data Sheet'!J85 -> -104.64 | K7: ='Data Sheet'!K85 -> -11.41

Sheet Customization
A1: ='Data Sheet'!B1 -> FIRSTSOURCE SOLUTIONS LTD
B4: DELTA NETWORTH | C4: DELTA MKTCAP | D4: IMPACT* | F4: HISTORICAL VALUATIONS | M4: PRE-TAX BOND
A5: 10 YR | B5: ='Calculated Data'!K13-'Calculated Data'!B13 -> 1358.54 | C5: ='Calculated Data'!K31-'Calculated Data'!B31 -> -847.651458 | D5: =C5/B5 -> -0.623942952 | G5: P/E | H5: P/B | I5: EV/EBITDA | J5: P/SALES | K5: YIELD | M5: LongTerm Bond | N5: 0.09
A6: 7 YR | B6: ='Calculated Data'!K13-'Calculated Data'!E13 -> 1001.07 | C6: ='Calculated Data'!K31-'Calculated Data'!E31 -> 1117.580209 | D6: =C6/B6 -> 1.116385677 | F6: MIN | G6: =MIN('Calculated Data'!B36:K36) -> 4.809511297 | H6: =MIN('Calculated Data'!B37:K37) -> 0.2940349787 | I6: =MIN('Calculated Data'!B40:K40) -> 5.569469834 | J6: =MIN('Calculated Data'!B39:K39) -> 0.1864476896 | K6: =MAX('Calculated Data'!B41:K41) -> 0 | M6: LTB Quote | N6: =('Profit & Loss'!$L$10/'Data Sheet'!$B$61)/N5 -> 2.715648818
A7: 5 YR | B7: ='Calculated Data'!K13-'Calculated Data'!G13 -> 995.2 | C7: ='Calculated Data'!K31-'Calculated Data'!G31 -> 2016.962306 | D7: =C7/B7 -> 2.02669042 | F7: MAX | G7: =MAX('Calculated Data'!B36:K36) -> 33.77944925 | H7: =MAX('Calculated Data'!B37:K37) -> 3.080072607 | I7: =MAX('Calculated Data'!B40:K40) -> 17.5997193 | J7: =MAX('Calculated Data'!B39:K39) -> 3.953035354 | K7: =MIN('Calculated Data'!B41:K41) -> 0 | M7: Equity Quoting @ | N7: =('Profit & Loss'!$L$6/'Data Sheet'!$B$6)/'Data Sheet'!$B$8 -> 0.1543015321
A8: 3 YR | B8: ='Calculated Data'!K13-'Calculated Data'!I13 -> 333.66 | C8: ='Calculated Data'!K31-'Calculated Data'!I31 -> 529.4467085 | D8: =C8/B8 -> 1.586785076 | F8: TRAILING | G8: ='Data Sheet'!B8/'Profit & Loss'!L13 -> 10.03665372 | H8: ='Calculated Data'!L31/'Calculated Data'!K13 -> 1.203650174 | I8: ='Calculated Data'!K40 -> 7.747905876 | J8: ='Calculated Data'!L31/'Data Sheet'!K17 -> 0.9036216563 | K8: ='Data Sheet'!K31/'Calculated Data'!L31 -> 0
A9: 1 YR | B9: ='Calculated Data'!K13-'Calculated Data'!J13 -> 336.47 | C9: ='Calculated Data'!K31-'Calculated Data'!J31 -> 336.5830112 | D9: =C9/B9 -> 1.000335873
A10: * IMPACT – Every Rupee retained added xx.yy in incremental market value
A12: =A1 -> FIRSTSOURCE SOLUTIONS LTD | B12: SALES | C12: GROSS PROFIT | D12: EBIT | E12: PAT | F12: DIVIDEND | G12: EPA** | H12: MKTCAP | I12: CFO** | J12: FCF** | K12: NETWORTH | L12: TOTAL RETURNS
A13: 10 YR CAGR | B13: =POWER('Data Sheet'!$K17/'Data Sheet'!$B17, 1/9)-1 -> 0.1628252364 | C13: =POWER('Calculated Data'!$K6/'Calculated Data'!$B6, 1/9)-1 -> 0.1628252364 | D13: =POWER('Calculated Data'!$K7/'Calculated Data'!$B7, 1/9)-1 -> 0.1328687603 | E13: =POWER('Calculated Data'!$K10/'Calculated Data'!$B10, 1/9)-1 -> 0.1178086219 | F13: =POWER('Calculated Data'!$K11/'Calculated Data'!$B11, 1/9)-1 ->  | G13: =POWER('Calculated Data'!$K26/'Calculated Data'!$B26, 1/9)-1 -> 0.1033254298 | H13: =POWER('Calculated Data'!$K31/'Calculated Data'!$B31, 1/9)-1 -> -0.03261735431 | I13: =POWER('Calculated Data'!$K19/'Calculated Data'!$B19, 1/9)-1 -> 0.1411038655 | J13: =POWER('Calculated Data'!$K21/'Calculated Data'!$C21, 1/8)-1 ->  | K13: =POWER('Calculated Data'!$K13/'Calculated Data'!$B13, 1/9)-1 -> 0.09556592387 | L13: =POWER('Calculated Data'!$K32/'Calculated Data'!$B32, 1/9)-1 -> -0.03261735431
A14: 5 YR CAGR | B14: =POWER('Data Sheet'!$K17/'Data Sheet'!$G17, 1/4)-1 -> 0.09401738438 | C14: =POWER('Calculated Data'!$K6/'Calculated Data'!$G6, 1/4)-1 -> 0.09401738438 | D14: =POWER('Calculated Data'!$K7/'Calculated Data'!$G7, 1/4)-1 -> 0.2519547428 | E14: =POWER('Calculated Data'!$K10/'Calculated Data'!$G10, 1/4)-1 -> 0.4376353104 | F14: =POWER('Calculated Data'!$K11/'Calculated Data'!$G11, 1/4)-1 ->  | G14: =POWER('Calculated Data'!$K26/'Calculated Data'!$G26, 1/4)-1 -> -0.304234185 | H14: =POWER('Calculated Data'!$K31/'Calculated Data'!$G31, 1/4)-1 -> 0.5516947626 | I14: =POWER('Calculated Data'!$K19/'Calculated Data'!$G19, 1/4)-1 -> 1.69522775 | J14: =POWER('Calculated Data'!$K21/'Calculated Data'!$G21, 1/4)-1 ->  | K14: =POWER('Calculated Data'!$K13/'Calculated Data'!$G13, 1/4)-1 -> 0.1411856659 | L14: =POWER('Calculated Data'!$K32/'Calculated Data'!$G32, 1/4)-1 -> 0.5516947626
A15: 3 YR CAGR | B15: =POWER('Data Sheet'!$K17/'Data Sheet'!$I17, 1/2)-1 -> 0.01983149605 | C15: =POWER('Calculated Data'!$K6/'Calculated Data'!$I6, 1/2)-1 -> 0.01983149605 | D15: =POWER('Calculated Data'!$K7/'Calculated Data'!$I7, 1/2)-1 -> 0.09494141405 | E15: =POWER('Calculated Data'!$K10/'Calculated Data'!$I10, 1/2)-1 -> 0.1718302576 | F15: =POWER('Calculated Data'!$K11/'Calculated Data'!$I11, 1/2)-1 ->  | G15: =POWER('Calculated Data'!$K26/'Calculated Data'!$I26, 1/2)-1 -> -0.206739789 | H15: =POWER('Calculated Data'!$K31/'Calculated Data'!$I31, 1/2)-1 -> 0.1302630617 | I15: =POWER('Calculated Data'!$K19/'Calculated Data'!$I19, 1/2)-1 -> -0.1295307515 | J15: =POWER('Calculated Data'!$K21/'Calculated Data'!$I21, 1/2)-1 -> -0.1502751688 | K15: =POWER('Calculated Data'!$K13/'Calculated Data'!$I13, 1/2)-1 -> 0.07681789374 | L15: =POWER('Calculated Data'!$K32/'Calculated Data'!$I32, 1/2)-1 -> 0.1302630617
A16: 1 YR GROWTH | B16: =('Data Sheet'!$K17-'Data Sheet'!$J17)/'Data Sheet'!$J17 -> 0.06446871962 | C16: =('Calculated Data'!$K6-'Calculated Data'!$J6)/'Calculated Data'!$J6 -> 0.06446871962 | D16: =('Calculated Data'!$K7-'Calculated Data'!$J7)/'Calculated Data'!$J7 -> 0.09958659838 | E16: =('Calculated Data'!$K10-'Calculated Data'!$J10)/'Calculated Data'!$J10 -> 0.1308040287 | F16: =('Calculated Data'!$K11-'Calculated Data'!$J11)/'Calculated Data'!$J11 ->  | G16: =('Calculated Data'!$K26-'Calculated Data'!$J26)/'Calculated Data'!$J26 -> 0.2840806125 | H16: =('Calculated Data'!$K31-'Calculated Data'!$J31)/'Calculated Data'!$J31 -> 0.1602152953 | I16: =('Calculated Data'!$K19-'Calculated Data'!$J19)/'Calculated Data'!$J19 -> 0.2181670392 | J16: =('Calculated Data'!$K21-'Calculated Data'!$J21)/'Calculated Data'!$J21 -> -0.8319036038 | K16: =('Calculated Data'!$K13-'Calculated Data'!$J13)/'Calculated Data'!$J13 -> 0.1610968008 | L16: =('Calculated Data'!$K32-'Calculated Data'!$J32)/'Calculated Data'!$J32 -> 0.1602152953
A17: **modify (if, then) for negative values
A18: =A1 -> FIRSTSOURCE SOLUTIONS LTD | B18: ='Data Sheet'!B16 -> 2007-03-31 | C18: ='Data Sheet'!C16 -> 2008-03-31 | D18: ='Data Sheet'!D16 -> 2009-03-31 | E18: ='Data Sheet'!E16 -> 2010-03-31 | F18: ='Data Sheet'!F16 -> 2011-03-31 | G18: ='Data Sheet'!G16 -> 2012-03-31 | H18: ='Data Sheet'!H16 -> 2013-03-31 | I18: ='Data Sheet'!I16 -> 2014-03-31 | J18: ='Data Sheet'!J16 -> 2015-03-31 | K18: ='Data Sheet'!K16 -> 2016-03-31
A19: Total Assets/Networth= Financial Leverage | B19: ='Calculated Data'!B17/'Calculated Data'!B13 -> 1.329286016 | C19: ='Calculated Data'!C17/'Calculated Data'!C13 -> 3.563577644 | D19: ='Calculated Data'!D17/'Calculated Data'!D13 -> 2.248588185 | E19: ='Calculated Data'!E17/'Calculated Data'!E13 -> 2.155243606 | F19: ='Calculated Data'!F17/'Calculated Data'!F13 -> 2.337395974 | G19: ='Calculated Data'!G17/'Calculated Data'!G13 -> 2.82913371 | H19: ='Calculated Data'!H17/'Calculated Data'!H13 -> 2.043924301 | I19: ='Calculated Data'!I17/'Calculated Data'!I13 -> 1.828925663 | J19: ='Calculated Data'!J17/'Calculated Data'!J13 -> 1.719690513 | K19: ='Calculated Data'!K17/'Calculated Data'!K13 -> 1.592683158
A20: Long term debt/Earning | B20: ='Data Sheet'!B59/'Data Sheet'!B30 -> 2.031773779 | C20: ='Data Sheet'!C59/'Data Sheet'!C30 -> 9.540741867 | D20: ='Data Sheet'!D59/'Data Sheet'!D30 -> 45.46984023 | E20: ='Data Sheet'!E59/'Data Sheet'!E30 -> 9.979054898 | F20: ='Data Sheet'!F59/'Data Sheet'!F30 -> 10.78095444 | G20: ='Data Sheet'!G59/'Data Sheet'!G30 -> 34.04401096 | H20: ='Data Sheet'!H59/'Data Sheet'!H30 -> 8.707347022 | I20: ='Data Sheet'!I59/'Data Sheet'!I30 -> 6.160603234 | J20: ='Data Sheet'!J59/'Data Sheet'!J30 -> 4.401672926 | K20: ='Data Sheet'!K59/'Data Sheet'!K30 -> 3.418990829
A21: Current liablility/Earning | B21: ='Data Sheet'!B60/'Data Sheet'!B30 -> 1.579537275 | C21: ='Data Sheet'!C60/'Data Sheet'!C30 -> 4.879674673 | D21: ='Data Sheet'!D60/'Data Sheet'!D30 -> 10.6873166 | E21: ='Data Sheet'!E60/'Data Sheet'!E30 -> 2.110972294 | F21: ='Data Sheet'!F60/'Data Sheet'!F30 -> 2.956248646 | G21: ='Data Sheet'!G60/'Data Sheet'!G30 -> 8.120425601 | H21: ='Data Sheet'!H60/'Data Sheet'!H30 -> 3.496077495 | I21: ='Data Sheet'!I60/'Data Sheet'!I30 -> 2.823849502 | J21: ='Data Sheet'!J60/'Data Sheet'!J30 -> 2.013315125 | K21: ='Data Sheet'!K60/'Data Sheet'!K30 -> 2.005434577
A22: Total liability/Earning | B22: =('Data Sheet'!B59+'Data Sheet'!B60)/'Data Sheet'!B30 -> 3.611311054 | C22: =('Data Sheet'!C59+'Data Sheet'!C60)/'Data Sheet'!C30 -> 14.42041654 | D22: =('Data Sheet'!D59+'Data Sheet'!D60)/'Data Sheet'!D30 -> 56.15715683 | E22: =('Data Sheet'!E59+'Data Sheet'!E60)/'Data Sheet'!E30 -> 12.09002719 | F22: =('Data Sheet'!F59+'Data Sheet'!F60)/'Data Sheet'!F30 -> 13.73720309 | G22: =('Data Sheet'!G59+'Data Sheet'!G60)/'Data Sheet'!G30 -> 42.16443656 | H22: =('Data Sheet'!H59+'Data Sheet'!H60)/'Data Sheet'!H30 -> 12.20342452 | I22: =('Data Sheet'!I59+'Data Sheet'!I60)/'Data Sheet'!I30 -> 8.984452736 | J22: =('Data Sheet'!J59+'Data Sheet'!J60)/'Data Sheet'!J30 -> 6.414988051 | K22: =('Data Sheet'!K59+'Data Sheet'!K60)/'Data Sheet'!K30 -> 5.424425407
A23: Debt/Equity | B23: ='Data Sheet'!B59/'Calculated Data'!B13 -> 0.1852608879 | C23: ='Data Sheet'!C59/'Calculated Data'!C13 -> 1.696097508 | D23: ='Data Sheet'!D59/'Calculated Data'!D13 -> 1.010968299 | E23: ='Data Sheet'!E59/'Calculated Data'!E13 -> 0.953532956 | F23: ='Data Sheet'!F59/'Calculated Data'!F13 -> 1.049588113 | G23: ='Data Sheet'!G59/'Calculated Data'!G13 -> 1.476861857 | H23: ='Data Sheet'!H59/'Calculated Data'!H13 -> 0.744857408 | I23: ='Data Sheet'!I59/'Calculated Data'!I13 -> 0.5683910052 | J23: ='Data Sheet'!J59/'Calculated Data'!J13 -> 0.4938188852 | K23: ='Data Sheet'!K59/'Calculated Data'!K13 -> 0.3735655172
A24: Interest Coverage | B24: ='Calculated Data'!B7/'Data Sheet'!B27 -> 8.693403298 | C24: ='Calculated Data'!C7/'Data Sheet'!C27 -> 3.860939061 | D24: ='Calculated Data'!D7/'Data Sheet'!D27 -> 1.455722377 | E24: ='Calculated Data'!E7/'Data Sheet'!E27 -> 3.982139535 | F24: ='Calculated Data'!F7/'Data Sheet'!F27 -> 4.826675398 | G24: ='Calculated Data'!G7/'Data Sheet'!G27 -> 2.099565847 | H24: ='Calculated Data'!H7/'Data Sheet'!H27 -> 2.730326087 | I24: ='Calculated Data'!I7/'Data Sheet'!I27 -> 3.162323157 | J24: ='Calculated Data'!J7/'Data Sheet'!J27 -> 4.045681478 | K24: ='Calculated Data'!K7/'Data Sheet'!K27 -> 5.862171053
A25: Working Capital/Sales | B25: ='Calculated Data'!B14/'Data Sheet'!B17 -> 0.5135255469 | C25: ='Calculated Data'!C14/'Data Sheet'!C17 -> -0.1058754687 | D25: ='Calculated Data'!D14/'Data Sheet'!D17 -> 0.1477731984 | E25: ='Calculated Data'!E14/'Data Sheet'!E17 -> 0.2156241913 | F25: ='Calculated Data'!F14/'Data Sheet'!F17 -> 0.2478056518 | G25: ='Calculated Data'!G14/'Data Sheet'!G17 -> 0.4235185078 | H25: ='Calculated Data'!H14/'Data Sheet'!H17 -> 0.1671432728 | I25: ='Calculated Data'!I14/'Data Sheet'!I17 -> 0.1751870645 | J25: ='Calculated Data'!J14/'Data Sheet'!J17 -> 0.1958215939 | K25: ='Calculated Data'!K14/'Data Sheet'!K17 -> 0.1968770606 | L25: Check for improving or deteriorating picture
A26: Inventory Turns | B26: =365/B27 -> 
A27: Inventory Days | B27: ='Balance Sheet'!B22 -> 0 | C27: ='Balance Sheet'!C22 -> 0 | D27: ='Balance Sheet'!D22 -> 0 | E27: ='Balance Sheet'!E22 -> 0 | F27: ='Balance Sheet'!F22 -> 0 | G27: ='Balance Sheet'!G22 -> 0 | H27: ='Balance Sheet'!H22 -> 0 | I27: ='Balance Sheet'!I22 -> 0 | J27: ='Balance Sheet'!J22 -> 0 | K27: ='Balance Sheet'!K22 -> 0
A28: Debtor Days | B28: ='Balance Sheet'!B23 -> 58.65334168 | C28: ='Balance Sheet'!C23 -> 57.71810685 | D28: ='Balance Sheet'!D23 -> 49.64744451 | E28: ='Balance Sheet'!E23 -> 48.34959585 | F28: ='Balance Sheet'!F23 -> 42.42125161 | G28: ='Balance Sheet'!G23 -> 56.8900749 | H28: ='Balance Sheet'!H23 -> 50.06198244 | I28: ='Balance Sheet'!I23 -> 35.48252025 | J28: ='Balance Sheet'!J23 -> 34.75417264 | K28: ='Balance Sheet'!K23 -> 34.35889657
A29: Creditor Days | L29: Check back to see if Creditor policy change is impacting Working Cap cycle
A30: Cash Conversion Cycle
A31: Cash In/Cash Out Ratio | B31: =('Data Sheet'!B67+'Data Sheet'!B69)/'Data Sheet'!B60 -> 2.904238005 | C31: =('Data Sheet'!C67+'Data Sheet'!C69)/'Data Sheet'!C60 -> 0.4848980482 | D31: =('Data Sheet'!D67+'Data Sheet'!D69)/'Data Sheet'!D60 -> 1.020928672 | E31: =('Data Sheet'!E67+'Data Sheet'!E69)/'Data Sheet'!E60 -> 1.36568723 | F31: =('Data Sheet'!F67+'Data Sheet'!F69)/'Data Sheet'!F60 -> 1.375656336 | G31: =('Data Sheet'!G67+'Data Sheet'!G69)/'Data Sheet'!G60 -> 2.05344345 | H31: =('Data Sheet'!H67+'Data Sheet'!H69)/'Data Sheet'!H60 -> 0.9301254659 | I31: =('Data Sheet'!I67+'Data Sheet'!I69)/'Data Sheet'!I60 -> 0.8960524142 | J31: =('Data Sheet'!J67+'Data Sheet'!J69)/'Data Sheet'!J60 -> 0.7825589283 | K31: =('Data Sheet'!K67+'Data Sheet'!K69)/'Data Sheet'!K60 -> 0.7019270578
A32: Current Ratio | B32: ='Data Sheet'!B65/'Data Sheet'!B60 -> 3.778139444 | C32: ='Data Sheet'!C65/'Data Sheet'!C60 -> 0.7857999595 | D32: ='Data Sheet'!D65/'Data Sheet'!D60 -> 1.788669229 | E32: ='Data Sheet'!E65/'Data Sheet'!E60 -> 2.479424871 | F32: ='Data Sheet'!F65/'Data Sheet'!F60 -> 2.243827387 | G32: ='Data Sheet'!G65/'Data Sheet'!G60 -> 2.895991741 | H32: ='Data Sheet'!H65/'Data Sheet'!H60 -> 1.919237449 | I32: ='Data Sheet'!I65/'Data Sheet'!I60 -> 1.998568518 | J32: ='Data Sheet'!J65/'Data Sheet'!J60 -> 2.259644735 | K32: ='Data Sheet'!K65/'Data Sheet'!K60 -> 2.196827129
A33: CFO/PAT | B33: ='Calculated Data'!B19/'Calculated Data'!B10 -> 0.9395372751 | C33: ='Calculated Data'!C19/'Calculated Data'!C10 -> 1.7243083 | D33: ='Calculated Data'!D19/'Calculated Data'!D10 -> 5.696446038 | E33: ='Calculated Data'!E19/'Calculated Data'!E10 -> 1.260895128 | F33: ='Calculated Data'!F19/'Calculated Data'!F10 -> 1.773879142 | G33: ='Calculated Data'!G19/'Calculated Data'!G10 -> 0.09156859584 | H33: ='Calculated Data'!H19/'Calculated Data'!H10 -> 1.359437888 | I33: ='Calculated Data'!I19/'Calculated Data'!I10 -> 2.050010365 | J33: ='Calculated Data'!J19/'Calculated Data'!J10 -> 1.050059747 | K33: ='Calculated Data'!K19/'Calculated Data'!K10 -> 1.131184662
A35: Gross Margin =Gross Profit/Sales | B35: ='Calculated Data'!B6/'Data Sheet'!B17 -> 1 | C35: ='Calculated Data'!C6/'Data Sheet'!C17 -> 1 | D35: ='Calculated Data'!D6/'Data Sheet'!D17 -> 1 | E35: ='Calculated Data'!E6/'Data Sheet'!E17 -> 1 | F35: ='Calculated Data'!F6/'Data Sheet'!F17 -> 1 | G35: ='Calculated Data'!G6/'Data Sheet'!G17 -> 1 | H35: ='Calculated Data'!H6/'Data Sheet'!H17 -> 1 | I35: ='Calculated Data'!I6/'Data Sheet'!I17 -> 1 | J35: ='Calculated Data'!J6/'Data Sheet'!J17 -> 1 | K35: ='Calculated Data'!K6/'Data Sheet'!K17 -> 1
A36: EBIT/Sales | B36: ='Calculated Data'!B7/'Data Sheet'!B17 -> 0.1395513947 | C36: ='Calculated Data'!C7/'Data Sheet'!C17 -> 0.148784638 | D36: ='Calculated Data'!D7/'Data Sheet'!D17 -> 0.09255903554 | E36: ='Calculated Data'!E7/'Data Sheet'!E17 -> 0.1086061935 | F36: ='Calculated Data'!F7/'Data Sheet'!F17 -> 0.1075814488 | G36: ='Calculated Data'!G7/'Data Sheet'!G17 -> 0.06433731413 | H36: ='Calculated Data'!H7/'Data Sheet'!H17 -> 0.08912060854 | I36: ='Calculated Data'!I7/'Data Sheet'!I17 -> 0.09571844373 | J36: ='Calculated Data'!J7/'Data Sheet'!J17 -> 0.1068129768 | K36: ='Calculated Data'!K7/'Data Sheet'!K17 -> 0.1103368428
A37: EBITDA/Sales | B37: ='Calculated Data'!B8/'Data Sheet'!B17 -> 0.216745686 | C37: ='Calculated Data'!C8/'Data Sheet'!C17 -> 0.2150617113 | D37: ='Calculated Data'!D8/'Data Sheet'!D17 -> 0.1475102465 | E37: ='Calculated Data'!E8/'Data Sheet'!E17 -> 0.1528828541 | F37: ='Calculated Data'!F8/'Data Sheet'!F17 -> 0.1509234751 | G37: ='Calculated Data'!G8/'Data Sheet'!G17 -> 0.1039206382 | H37: ='Calculated Data'!H8/'Data Sheet'!H17 -> 0.1204843642 | I37: ='Calculated Data'!I8/'Data Sheet'!I17 -> 0.1200915683 | J37: ='Calculated Data'!J8/'Data Sheet'!J17 -> 0.1305982568 | K37: ='Calculated Data'!K8/'Data Sheet'!K17 -> 0.1308303589
A38: Op Profit (Ex Other Income)/Sales | B38: ='Calculated Data'!B9/'Data Sheet'!B17 -> 0.2007412577 | C38: ='Calculated Data'!C9/'Data Sheet'!C17 -> 0.1804525751 | D38: ='Calculated Data'!D9/'Data Sheet'!D17 -> 0.1069928031 | E38: ='Calculated Data'!E9/'Data Sheet'!E17 -> 0.1409587018 | F38: ='Calculated Data'!F9/'Data Sheet'!F17 -> 0.1408859134 | G38: ='Calculated Data'!G9/'Data Sheet'!G17 -> 0.08678087264 | H38: ='Calculated Data'!H9/'Data Sheet'!H17 -> 0.1040219404 | I38: ='Calculated Data'!I9/'Data Sheet'!I17 -> 0.1194476284 | J38: ='Calculated Data'!J9/'Data Sheet'!J17 -> 0.1284497388 | K38: ='Calculated Data'!K9/'Data Sheet'!K17 -> 0.1279080206
A39: Net Margin =PAT/Sales | B39: ='Calculated Data'!B10/'Data Sheet'!B17 -> 0.117024861 | C39: ='Calculated Data'!C10/'Data Sheet'!C17 -> 0.1012942816 | D39: ='Calculated Data'!D10/'Data Sheet'!D17 -> 0.01753202582 | E39: ='Calculated Data'!E10/'Data Sheet'!E17 -> 0.06904337854 | F39: ='Calculated Data'!F10/'Data Sheet'!F17 -> 0.06739227745 | G39: ='Calculated Data'!G10/'Data Sheet'!G17 -> 0.02750788252 | H39: ='Calculated Data'!H10/'Data Sheet'!H17 -> 0.05200919625 | I39: ='Calculated Data'!I10/'Data Sheet'!I17 -> 0.06212731979 | J39: ='Calculated Data'!J10/'Data Sheet'!J17 -> 0.07721483532 | K39: ='Calculated Data'!K10/'Data Sheet'!K17 -> 0.0820266911
A40: Op Cash Flow/Sales | B40: ='Calculated Data'!B19/'Data Sheet'!B17 -> 0.109949219 | C40: ='Calculated Data'!C19/'Data Sheet'!C17 -> 0.1746625705 | D40: ='Calculated Data'!D19/'Data Sheet'!D17 -> 0.099870239 | E40: ='Calculated Data'!E19/'Data Sheet'!E17 -> 0.08705645959 | F40: ='Calculated Data'!F19/'Data Sheet'!F17 -> 0.1195457553 | G40: ='Calculated Data'!G19/'Data Sheet'!G17 -> 0.002518858177 | H40: ='Calculated Data'!H19/'Data Sheet'!H17 -> 0.07070327191 | I40: ='Calculated Data'!I19/'Data Sheet'!I17 -> 0.1273616495 | J40: ='Calculated Data'!J19/'Data Sheet'!J17 -> 0.08108019047 | K40: ='Calculated Data'!K19/'Data Sheet'!K17 -> 0.09278733488
A41: Free Cash Flow/Sales | B41: ='Calculated Data'!B21/'Data Sheet'!B17 -> 0 | C41: ='Calculated Data'!C21/'Data Sheet'!C17 -> -0.9606633867 | D41: ='Calculated Data'!D21/'Data Sheet'!D17 -> -0.1854782007 | E41: ='Calculated Data'!E21/'Data Sheet'!E17 -> 0.1733213584 | F41: ='Calculated Data'!F21/'Data Sheet'!F17 -> 0.06775719123 | G41: ='Calculated Data'!G21/'Data Sheet'!G17 -> -0.1403154781 | H41: ='Calculated Data'!H21/'Data Sheet'!H17 -> 0.035905114 | I41: ='Calculated Data'!I21/'Data Sheet'!I17 -> 0.03390343478 | J41: ='Calculated Data'!J21/'Data Sheet'!J17 -> 0.1490451947 | K41: ='Calculated Data'!K21/'Data Sheet'!K17 -> 0.0235365865
A42: EPA/Sales | B42: ='Calculated Data'!B26/'Data Sheet'!B17 -> -0.03452141794 | C42: ='Calculated Data'!C26/'Data Sheet'!C17 -> -0.04666160435 | D42: ='Calculated Data'!D26/'Data Sheet'!D17 -> -0.133956384 | E42: ='Calculated Data'!E26/'Data Sheet'!E17 -> -0.07076430636 | F42: ='Calculated Data'!F26/'Data Sheet'!F17 -> -0.0763473726 | G42: ='Calculated Data'!G26/'Data Sheet'!G17 -> -0.1315333214 | H42: ='Calculated Data'!H26/'Data Sheet'!H17 -> -0.0453000492 | I42: ='Calculated Data'!I26/'Data Sheet'!I17 -> -0.03556450267 | J42: ='Calculated Data'!J26/'Data Sheet'!J17 -> -0.01783741252 | K42: ='Calculated Data'!K26/'Data Sheet'!K17 -> -0.02151747174
A44: Sales/Invested Capital =Capital Turns | B44: ='Data Sheet'!B17/'Calculated Data'!B15 -> 0.7233242521 | C44: ='Data Sheet'!C17/'Calculated Data'!C15 -> 0.6582484415 | D44: ='Data Sheet'!D17/'Calculated Data'!D15 -> 0.631047158 | E44: ='Data Sheet'!E17/'Calculated Data'!E15 -> 0.735001902 | F44: ='Data Sheet'!F17/'Calculated Data'!F15 -> 0.7384964751 | G44: ='Data Sheet'!G17/'Calculated Data'!G15 -> 0.6514280927 | H44: ='Data Sheet'!H17/'Calculated Data'!H15 -> 0.9434885652 | I44: ='Data Sheet'!I17/'Calculated Data'!I15 -> 0.9483776802 | J44: ='Data Sheet'!J17/'Calculated Data'!J15 -> 0.9960612476 | K44: ='Data Sheet'!K17/'Calculated Data'!K15 -> 0.9952000542
A45: Sales/Fixed Assets= Fixed Asset Turns | B45: ='Data Sheet'!B17/'Data Sheet'!B62 -> 1.163991372 | C45: ='Data Sheet'!C17/'Data Sheet'!C62 -> 0.6179741066 | D45: ='Data Sheet'!D17/'Data Sheet'!D62 -> 0.6978943925 | E45: ='Data Sheet'!E17/'Data Sheet'!E62 -> 0.8765377739 | F45: ='Data Sheet'!F17/'Data Sheet'!F62 -> 0.9082906134 | G45: ='Data Sheet'!G17/'Data Sheet'!G62 -> 0.9027506996 | H45: ='Data Sheet'!H17/'Data Sheet'!H62 -> 1.120941442 | I45: ='Data Sheet'!I17/'Data Sheet'!I62 -> 1.137505814 | J45: ='Data Sheet'!J17/'Data Sheet'!J62 -> 1.241709051 | K45: ='Data Sheet'!K17/'Data Sheet'!K62 -> 1.241454716
A46: Sales/Total Assets= Asset Turns | B46: ='Data Sheet'!B17/'Calculated Data'!B17 -> 0.5861541174 | C46: ='Data Sheet'!C17/'Calculated Data'!C17 -> 0.4924901126 | D46: ='Data Sheet'!D17/'Calculated Data'!D17 -> 0.5639908826 | E46: ='Data Sheet'!E17/'Calculated Data'!E17 -> 0.6421372971 | F46: ='Data Sheet'!F17/'Calculated Data'!F17 -> 0.6180438195 | G46: ='Data Sheet'!G17/'Calculated Data'!G17 -> 0.5574276639 | H46: ='Data Sheet'!H17/'Calculated Data'!H17 -> 0.8047154485 | I46: ='Data Sheet'!I17/'Calculated Data'!I17 -> 0.8119799115 | J46: ='Data Sheet'!J17/'Calculated Data'!J17 -> 0.8448874931 | K46: ='Data Sheet'!K17/'Calculated Data'!K17 -> 0.8363426885
A47: Net Margin*Asset Turns= RoA | B47: =B39*B46 -> 0.06859460413 | C47: =C39*C46 -> 0.04988643215 | D47: 0.009887902714 | E47: 0.04433532848 | F47: 0.04165138056 | G47: 0.01533365469 | H47: 0.04185260369 | I47: 0.05044613563 | J47: 0.06523784864 | K47: 0.06860242336 | L47: Check back what is really driving RoA (Net Margins or Asset Turns, or both)
A48: Net Margin*Asset Turn*Fin Leverage= RoE | B48: =B39*B46*B19 -> 0.09118184801 | C48: 0.1777741744 | D48: 0.02223382122 | E48: 0.09555343324 | F48: 0.09735576923 | G48: 0.04338095937 | H48: 0.08554355374 | I48: 0.09226223206 | J48: 0.1121889094 | K48: 0.1092619243 | L48: Check back what is really driving RoE (Net Margins, Asset Turns, or Financial Leverage)
A49: RoCE | B49: ='Calculated Data'!B7/'Calculated Data'!B16 -> 0.09173825684 | C49: ='Calculated Data'!C7/'Calculated Data'!C16 -> 0.09685147503 | D49: ='Calculated Data'!D7/'Calculated Data'!D16 -> 0.05837079442 | E49: ='Calculated Data'!E7/'Calculated Data'!E16 -> 0.07694105044 | F49: ='Calculated Data'!F7/'Calculated Data'!F16 -> 0.07582673466 | G49: ='Calculated Data'!G7/'Calculated Data'!G16 -> 0.04096407314 | H49: ='Calculated Data'!H7/'Calculated Data'!H16 -> 0.08400890958 | I49: ='Calculated Data'!I7/'Calculated Data'!I16 -> 0.0906322214 | J49: ='Calculated Data'!J7/'Calculated Data'!J16 -> 0.1038903597 | K49: ='Calculated Data'!K7/'Calculated Data'!K16 -> 0.1070002582
A50: EBIT Margin*Cap Turns*(1-Tax rate)= RoIC | B50: =B36*B44*(1-'Calculated Data'!B22) -> 0.09502982119 | C50: =C36*C44*(1-'Calculated Data'!C22) -> 0.08928507166 | D50: =D36*D44*(1-'Calculated Data'!D22) -> 0.03546720459 | E50: =E36*E44*(1-'Calculated Data'!E22) -> 0.06798810023 | F50: =F36*F44*(1-'Calculated Data'!F22) -> 0.06361773445 | G50: =G36*G44*(1-'Calculated Data'!G22) -> 0.03431549929 | H50: =H36*H44*(1-'Calculated Data'!H22) -> 0.07725992158 | I50: =I36*I44*(1-'Calculated Data'!I22) -> 0.08627141946 | J50: =J36*J44*(1-'Calculated Data'!J22) -> 0.1022328446 | K50: =K36*K44*(1-'Calculated Data'!K22) -> 0.09858581095 | L50: Check back what is really driving RoIC (Op Margins or Capital Turns, or both)
A51: Return on Incremental Invested Cap= RoIIC | D51: ='Calculated Data'!D27 -> -0.09445075205 | E51: ='Calculated Data'!E27 -> 0.1050947879 | F51: ='Calculated Data'!F27 -> 0.05776990674 | G51: ='Calculated Data'!G27 -> -0.5727988257 | H51: ='Calculated Data'!H27 -> 0.1650819009 | I51: ='Calculated Data'!I27 -> -0.1090785938 | J51: ='Calculated Data'!J27 -> 0.100611912 | K51: ='Calculated Data'!K27 -> -0.03736050686
A52: ='Calculated Data'!A28 -> 3Yr Rolling RoIIC | G52: ='Calculated Data'!G28 -> 0.02526761193 | H52: ='Calculated Data'!H28 -> 0.07035273069 | I52: ='Calculated Data'!I28 -> 0.3446890739 | J52: ='Calculated Data'!J28 -> 0.3917232264 | K52: ='Calculated Data'!K28 -> -0.2149448787 | L52: better to check if NOPLAT and/or Investments are Lumpy
A53: ='Calculated Data'!A29 -> 5Yr Rolling RoIIC | G53: ='Calculated Data'!G29 -> 0 | H53: ='Calculated Data'!H29 -> 0.02362362259 | I53: ='Calculated Data'!I29 -> 0.1816226627 | J53: ='Calculated Data'!J29 -> 0.2569136651 | K53: ='Calculated Data'!K29 -> 0.3912971289 | L53: better to check if NOPLAT and/or Investments are Lumpy
A55: Altman Z-Score | B55: ='Calculated Data'!B48 -> 2.70358093 | C55: ='Calculated Data'!C48 -> 1.144544512 | D55: ='Calculated Data'!D48 -> 0.9933231594 | E55: ='Calculated Data'!E48 -> 1.358521481 | F55: ='Calculated Data'!F48 -> 1.230215808 | G55: ='Calculated Data'!G48 -> 1.042899775 | H55: ='Calculated Data'!H48 -> 1.382151975 | I55: ='Calculated Data'!I48 -> 1.609064661 | J55: ='Calculated Data'!J48 -> 1.783502938 | K55: ='Calculated Data'!K48 -> 1.813131211
A56: Dividend Payout | B56: ='Data Sheet'!B31/'Data Sheet'!B30 -> 0 | C56: ='Data Sheet'!C31/'Data Sheet'!C30 -> 0 | D56: ='Data Sheet'!D31/'Data Sheet'!D30 -> 0 | E56: ='Data Sheet'!E31/'Data Sheet'!E30 -> 0 | F56: ='Data Sheet'!F31/'Data Sheet'!F30 -> 0 | G56: ='Data Sheet'!G31/'Data Sheet'!G30 -> 0 | H56: ='Data Sheet'!H31/'Data Sheet'!H30 -> 0 | I56: ='Data Sheet'!I31/'Data Sheet'!I30 -> 0 | J56: ='Data Sheet'!J31/'Data Sheet'!J30 -> 0 | K56: ='Data Sheet'!K31/'Data Sheet'!K30 -> 0
A57: Cash/Assets | B57: ='Data Sheet'!B69/'Data Sheet'!B61 -> 0.2204761065 | C57: ='Data Sheet'!C69/'Data Sheet'!C61 -> 0.04016017048 | D57: ='Data Sheet'!D69/'Data Sheet'!D61 -> 0.03117252407 | E57: ='Data Sheet'!E69/'Data Sheet'!E61 -> 0.0427550658 | F57: ='Data Sheet'!F69/'Data Sheet'!F61 -> 0.09755642828 | G57: ='Data Sheet'!G69/'Data Sheet'!G61 -> 0.1688036882 | H57: ='Data Sheet'!H69/'Data Sheet'!H61 -> 0.02572426218 | I57: ='Data Sheet'!I69/'Data Sheet'!I61 -> 0.04871021968 | J57: ='Data Sheet'!J69/'Data Sheet'!J61 -> 0.02233711419 | K57: ='Data Sheet'!K69/'Data Sheet'!K61 -> 0.01784123861
A58: EBIT/Invested Capital | B58: ='Calculated Data'!B7/'Calculated Data'!B15 -> 0.1009409082 | C58: ='Calculated Data'!C7/'Calculated Data'!C15 -> 0.09793725609 | D58: ='Calculated Data'!D7/'Calculated Data'!D15 -> 0.05840911632 | E58: ='Calculated Data'!E7/'Calculated Data'!E15 -> 0.07982575876 | F58: ='Calculated Data'!F7/'Calculated Data'!F15 -> 0.07944852069 | G58: ='Calculated Data'!G7/'Calculated Data'!G15 -> 0.04191113384 | H58: ='Calculated Data'!H7/'Calculated Data'!H15 -> 0.08408427508 | I58: ='Calculated Data'!I7/'Calculated Data'!I15 -> 0.09077723561 | J58: ='Calculated Data'!J7/'Calculated Data'!J15 -> 0.1063922669 | K58: ='Calculated Data'!K7/'Calculated Data'!K15 -> 0.109807232 | L58: Check back the significant role of EBIT/Invested Capital
A59: EPA | B59: ='Calculated Data'!B26 -> -28.68798874 | C59: ='Calculated Data'!C26 -> -60.60362511 | D59: ='Calculated Data'!D26 -> -234.3392795 | E59: ='Calculated Data'!E26 -> -139.4615873 | F59: ='Calculated Data'!F26 -> -156.915228 | G59: ='Calculated Data'!G26 -> -296.6063245 | H59: ='Calculated Data'!H26 -> -127.6800007 | I59: ='Calculated Data'!I26 -> -110.4590775 | J59: ='Calculated Data'!J26 -> -54.13030391 | K59: ='Calculated Data'!K26 -> -69.5076738 | L59: Check back what is really driving EPA (Invested Capital or RoIC, or both)
A60: MktCap | B60: ='Calculated Data'!B31 -> 3285.051439 | C60: ='Calculated Data'!C31 -> 1771.212236 | D60: ='Calculated Data'!D31 -> 740.3399602 | E60: ='Calculated Data'!E31 -> 1319.819772 | F60: ='Calculated Data'!F31 -> 835.0074349 | G60: ='Calculated Data'!G31 -> 420.4376756 | H60: ='Calculated Data'!H31 -> 705.0262611 | I60: ='Calculated Data'!I31 -> 1907.953273 | J60: ='Calculated Data'!J31 -> 2100.81697 | K60: ='Calculated Data'!K31 -> 2437.399981
A61: MktCap Change | C61: =C60-B60 -> -1513.839204 | D61: =D60-C60 -> -1030.872276 | E61: 579.479812 | F61: -484.8123373 | G61: -414.5697593 | H61: 284.5885854 | I61: 1202.927012 | J61: 192.8636973 | K61: 336.5830112
A62: MktCap Change - EPA | C62: =C61-C59 -> -1453.235579 | D62: -796.5329961 | E62: 718.9413993 | F62: -327.8971093 | G62: -117.9634348 | H62: 412.2685861 | I62: 1313.386089 | J62: 246.9940012 | K62: 406.090685
A64: Capex/Net Profits 10 yr | B64: =SUM('Calculated Data'!B$20:K$20)/SUM('Calculated Data'!B$10:K$10) -> 1.83845205
A65: Capex/Net Profits 7 yr | B65: =SUM('Calculated Data'!E$20:K$20)/SUM('Calculated Data'!E$10:K$10) -> 0.5651622783
A66: Capex/Net Profits 5 yr | B66: =SUM('Calculated Data'!G$20:K$20)/SUM('Calculated Data'!G$10:K$10) -> 0.8079856139
A67: Capex/Net Profits 3 yr | B67: =SUM('Calculated Data'!I$20:K$20)/SUM('Calculated Data'!I$10:K$10) -> 0.4445214879
A68: Capex/Depreciation 10 yr | B68: =SUM('Calculated Data'!B$20:K$20)/SUM('Data Sheet'!B26:K26) -> 3.239096803

Sheet Data Sheet
A1: COMPANY NAME | B1: FIRSTSOURCE SOLUTIONS LTD | E1: =IF(B2<>B3, "A NEW VERSION OF THE WORKSHEET IS AVAILABLE", "") -> 
A2: LATEST VERSION | B2: 2.1 | E2: PLEASE DO NOT MAKE ANY CHANGES TO THIS SHEET
A3: CURRENT VERSION | B3: 2.1
A5: META
A6: Number of shares | B6: =IF(B9>0, B9/B8, 0) -> 67.8039489
A7: Face Value | B7: 10
A8: Current Price | B8: 43.05
A9: Market Capitalization | B9: 2918.96
A15: PROFIT & LOSS
A16: Report Date | B16: 2007-03-31 | C16: 2008-03-31 | D16: 2009-03-31 | E16: 2010-03-31 | F16: 2011-03-31 | G16: 2012-03-31 | H16: 2013-03-31 | I16: 2014-03-31 | J16: 2015-03-31 | K16: 2016-03-31
A17: Sales | B17: 831.02 | C17: 1298.79 | D17: 1749.37 | E17: 1970.79 | F17: 2055.28 | G17: 2254.99 | H17: 2818.54 | I17: 3105.88 | J17: 3034.65 | K17: 3230.29
A18: Raw Material Cost
A19: Change in Inventory
A20: Power and Fuel | B20: 11.02 | C20: 17.93 | D20: 22.37 | E20: 28.26 | F20: 28.57 | G20: 33.03 | H20: 41.26 | I20: 39.41 | J20: 39.01 | K20: 35.75
A21: Other Mfr. Exp | B21: 49.91 | C21: 62.16 | D21: 114.32 | E21: 77.49 | F21: 17.59 | G21: 18.2 | H21: 91.33 | I21: 101.81 | J21: 114.36 | K21: 125.32
A22: Employee Cost | B22: 412.23 | C22: 709.8 | D22: 1025.28 | E22: 1199.87 | F22: 1268.26 | G22: 1522.36 | H22: 1934.87 | I22: 2129.41 | J22: 2017.15 | K22: 2172.17
A23: Selling and admin | B23: 184.52 | C23: 268.28 | D23: 343.58 | E23: 382.4 | F23: 446.17 | G23: 480.38 | H23: 452.42 | I23: 462.21 | J23: 465.42 | K23: 471.25
A24: Other Expenses | B24: 6.52 | C24: 6.25 | D24: 56.65 | E24: 4.97 | F24: 5.13 | G24: 5.33 | H24: 5.45 | I24: 2.05 | J24: 8.92 | K24: 12.63
A25: Other Income | B25: 13.3 | C25: 44.95 | D25: 70.88 | E25: 23.5 | F25: 20.63 | G25: 38.65 | H25: 46.4 | I25: 2 | J25: 6.52 | K25: 9.44
A26: Depreciation | B26: 64.15 | C26: 86.08 | D26: 96.13 | E26: 87.26 | F26: 89.08 | G26: 89.26 | H26: 88.4 | I26: 75.7 | J26: 72.18 | K26: 66.2
A27: Interest | B27: 13.34 | C27: 50.05 | D27: 111.23 | E27: 53.75 | F27: 45.81 | G27: 69.1 | H27: 92 | I27: 94.01 | J27: 80.12 | K27: 60.8
A28: Profit before tax | B28: 102.63 | C28: 143.19 | D28: 50.69 | E28: 160.29 | F28: 175.3 | G28: 75.98 | H28: 159.19 | I28: 203.28 | J28: 244.02 | K28: 295.62
A29: Tax | B29: 6.01 | C29: 12.65 | D29: 19.91 | E29: 23.77 | F29: 34.93 | G29: 13.77 | H29: 12.92 | I29: 10.09 | J29: 9.54 | K29: 30.21
A30: Net profit | B30: 97.25 | C30: 131.56 | D30: 30.67 | E30: 136.07 | F30: 138.51 | G30: 62.03 | H30: 146.59 | I30: 192.96 | J30: 234.32 | K30: 264.97
A31: Dividend Amount
A40: Quarters
A41: Report Date | B41: 2014-09-30 | C41: 2014-12-31 | D41: 2015-03-31 | E41: 2015-06-30 | F41: 2015-09-30 | G41: 2015-12-31 | H41: 2016-03-31 | I41: 2016-06-30 | J41: 2016-09-30 | K41: 2016-12-31
A42: Sales | B42: 773.99 | C42: 751.02 | D42: 754.05 | E42: 741.43 | F42: 787.8 | G42: 818.6 | H42: 869.43 | I42: 893.54 | J42: 884.35 | K42: 885.41
A43: Expenses | B43: 679.11 | C43: 657.47 | D43: 654.75 | E43: 657.3 | F43: 694.26 | G43: 717.29 | H43: 758 | I43: 774.31 | J43: 771.78 | K43: 778.24
A44: Other Income | B44: 4.7 | C44: 2.47 | D44: 0.38 | E44: 4.54 | F44: 0.92 | G44: 2.06 | H44: 1.93 | I44: 1.86 | J44: 0.39 | K44: 1.41
A45: Depreciation | B45: 17.73 | C45: 18.93 | D45: 17.98 | E45: 17.21 | F45: 18.3 | G45: 15.99 | H45: 14.7 | I45: 16.3 | J45: 16.05 | K45: 15.57
A46: Interest | B46: 18.07 | C46: 17.27 | D46: 17.37 | E46: 14.27 | F46: 13.06 | G46: 12.45 | H46: 12.97 | I46: 13.16 | J46: 10.86 | K46: 9.88
A47: Profit before tax | B47: 63.77 | C47: 59.83 | D47: 64.32 | E47: 57.19 | F47: 63.09 | G47: 74.92 | H47: 85.69 | I47: 91.64 | J47: 86.06 | K47: 83.12
A48: Tax | B48: 2.47 | C48: 2.12 | D48: 2.17 | E48: 4.17 | F48: 4.29 | G48: 7.29 | H48: 9.54 | I48: 18.27 | J48: 14.86 | K48: 13.36
A49: Net profit | B49: 61.24 | C49: 57.51 | D49: 62.32 | E49: 52.87 | F49: 58.66 | G49: 67.45 | H49: 76.2 | I49: 73.36 | J49: 71.26 | K49: 70.01
A50: Operating Profit | B50: 94.88 | C50: 93.55 | D50: 99.3 | E50: 84.13 | F50: 93.54 | G50: 101.31 | H50: 111.43 | I50: 119.23 | J50: 112.57 | K50: 107.17
A55: BALANCE SHEET
A56: Report Date | B56: 2007-03-31 | C56: 2008-03-31 | D56: 2009-03-31 | E56: 2010-03-31 | F56: 2011-03-31 | G56: 2012-03-31 | H56: 2013-03-31 | I56: 2014-03-31 | J56: 2015-03-31 | K56: 2016-03-31
A57: Equity Share Capital | B57: 425.08 | C57: 427.31 | D57: 428.19 | E57: 429.21 | F57: 430.64 | G57: 430.78 | H57: 657.67 | I57: 659.74 | J57: 666.29 | K57: 673.32
A58: Reserves | B58: 641.47 | C58: 312.73 | D58: 951.24 | E58: 994.81 | F58: 992.08 | G58: 999.11 | H58: 1055.96 | I58: 1431.69 | J58: 1422.33 | K58: 1751.77
A59: Borrowings | B59: 197.59 | C59: 1255.18 | D59: 1394.56 | E59: 1357.85 | F59: 1493.27 | G59: 2111.75 | H59: 1276.41 | I59: 1188.75 | J59: 1031.4 | K59: 905.93
A60: Other Liabilities | B60: 153.61 | C60: 641.97 | D60: 327.78 | E60: 287.24 | F60: 409.47 | G60: 503.71 | H60: 512.49 | I60: 544.89 | J60: 471.76 | K60: 531.38
A61: Total | B61: 1417.75 | C61: 2637.19 | D61: 3101.77 | E61: 3069.11 | F61: 3325.46 | G61: 4045.35 | H61: 3502.53 | I61: 3825.07 | J61: 3591.78 | K61: 3862.4
A62: Net Block | B62: 713.94 | C62: 2101.69 | D62: 2506.64 | E62: 2248.38 | F62: 2262.8 | G62: 2497.91 | H62: 2514.44 | I62: 2730.43 | J62: 2443.93 | K62: 2602.02
A63: Capital Work in Progress | B63: 8.2 | C63: 8.92 | D63: 7.02 | E63: 8.01 | F63: 10.95 | G63: 8.67 | H63: 1.82 | I63: 0.4 | J63: 8.47 | K63: 7.88
A64: Investments | B64: 115.25 | C64: 22.12 | D64: 1.82 | E64: 100.53 | F64: 132.93 | G64: 80.03 | H64: 2.68 | I64: 5.24 | J64: 73.37 | K64: 85.15
A65: Other Assets | B65: 580.36 | C65: 504.46 | D65: 586.29 | E65: 712.19 | F65: 918.78 | G65: 1458.74 | H65: 983.59 | I65: 1089 | J65: 1066.01 | K65: 1167.35
A66: Total | B66: 1417.75 | C66: 2637.19 | D66: 3101.77 | E66: 3069.11 | F66: 3325.46 | G66: 4045.35 | H66: 3502.53 | I66: 3825.07 | J66: 3591.78 | K66: 3862.4
A67: Receivables | B67: 133.54 | C67: 205.38 | D67: 237.95 | E67: 261.06 | F67: 238.87 | G67: 351.47 | H67: 386.58 | I67: 301.93 | J67: 288.95 | K67: 304.08
A68: Inventory
A69: Cash & Bank | B69: 312.58 | C69: 105.91 | D69: 96.69 | E69: 131.22 | F69: 324.42 | G69: 682.87 | H69: 90.1 | I69: 186.32 | J69: 80.23 | K69: 68.91
A70: No. of Equity Shares | B70: 425084296 | C70: 427312964 | D70: 428189682 | E70: 429209682 | F70: 430638182 | G70: 430776307 | H70: 657673751 | I70: 659734880 | J70: 666291459 | K70: 673314912
A71: New Bonus Shares
A72: Face value | B72: 10 | C72: 10 | D72: 10 | E72: 10 | F72: 10 | G72: 10 | H72: 10 | I72: 10 | J72: 10 | K72: 10
A80: CASH FLOW:
A81: Report Date | B81: 2007-03-31 | C81: 2008-03-31 | D81: 2009-03-31 | E81: 2010-03-31 | F81: 2011-03-31 | G81: 2012-03-31 | H81: 2013-03-31 | I81: 2014-03-31 | J81: 2015-03-31 | K81: 2016-03-31
A82: Cash from Operating Activity | B82: 91.37 | C82: 226.85 | D82: 174.71 | E82: 171.57 | F82: 245.7 | G82: 5.68 | H82: 199.28 | I82: 395.57 | J82: 246.05 | K82: 299.73
A83: Cash from Investing Activity | B83: -404.63 | C83: -1415.23 | D83: -88.03 | E83: -147.22 | F83: -59.69 | G83: -475.73 | H83: 583.34 | I83: -13.28 | J83: -104.24 | K83: -103.69
A84: Cash from Financing Activity | B84: 597.23 | C84: 989.85 | D84: -92.45 | E84: 0.71 | F84: 16.86 | G84: 332.81 | H84: -881.06 | I84: -286.41 | J84: -246.45 | K84: -207.44
A85: Net Cash Flow | B85: 283.97 | C85: -198.53 | D85: -5.77 | E85: 25.06 | F85: 202.87 | G85: -137.24 | H85: -98.44 | I85: 95.88 | J85: -104.64 | K85: -11.41
A90: PRICE: | B90: 77.28 | C90: 41.45 | D90: 17.29 | E90: 30.75 | F90: 19.39 | G90: 9.76 | H90: 10.72 | I90: 28.92 | J90: 31.53 | K90: 36.2
A92: DERIVED:
A93: Adjusted Equity Shares in Cr | B93: =IF($B7>0,(B70*B72/$B7)+SUM(C71:$K71),0)/10000000 -> 42.5084296 | C93: =IF($B7>0,(C70*C72/$B7)+SUM(D71:$K71),0)/10000000 -> 42.7312964 | D93: =IF($B7>0,(D70*D72/$B7)+SUM(E71:$K71),0)/10000000 -> 42.8189682 | E93: =IF($B7>0,(E70*E72/$B7)+SUM(F71:$K71),0)/10000000 -> 42.9209682 | F93: =IF($B7>0,(F70*F72/$B7)+SUM(G71:$K71),0)/10000000 -> 43.0638182 | G93: =IF($B7>0,(G70*G72/$B7)+SUM(H71:$K71),0)/10000000 -> 43.0776307 | H93: =IF($B7>0,(H70*H72/$B7)+SUM(I71:$K71),0)/10000000 -> 65.7673751 | I93: =IF($B7>0,(I70*I72/$B7)+SUM(J71:$K71),0)/10000000 -> 65.973488 | J93: =IF($B7>0,(J70*J72/$B7)+SUM(K71:$K71),0)/10000000 -> 66.6291459 | K93: =IF($B7>0,(K70*K72/$B7),0)/10000000 -> 67.3314912

Sheet Calculated Data
A1: ='Data Sheet'!B1 -> FIRSTSOURCE SOLUTIONS LTD
A2: =A5 -> FIRSTSOURCE SOLUTIONS LTD | B2: =B5 -> 2007-03-31 | C2: =C5 -> 2008-03-31 | D2: 2009-03-31 | E2: 2010-03-31 | F2: 2011-03-31 | G2: 2012-03-31 | H2: 2013-03-31 | I2: 2014-03-31 | J2: 2015-03-31 | K2: 2016-03-31
A3: Payables (Creditors) | L3: Input data from Annual Reports
A5: =A1 -> FIRSTSOURCE SOLUTIONS LTD | B5: ='Data Sheet'!B16 -> 2007-03-31 | C5: ='Data Sheet'!C16 -> 2008-03-31 | D5: ='Data Sheet'!D16 -> 2009-03-31 | E5: ='Data Sheet'!E16 -> 2010-03-31 | F5: ='Data Sheet'!F16 -> 2011-03-31 | G5: ='Data Sheet'!G16 -> 2012-03-31 | H5: ='Data Sheet'!H16 -> 2013-03-31 | I5: ='Data Sheet'!I16 -> 2014-03-31 | J5: ='Data Sheet'!J16 -> 2015-03-31 | K5: ='Data Sheet'!K16 -> 2016-03-31
A6: Gross Profit | B6: ='Data Sheet'!B17-'Data Sheet'!B18 -> 831.02 | C6: ='Data Sheet'!C17-'Data Sheet'!C18 -> 1298.79 | D6: ='Data Sheet'!D17-'Data Sheet'!D18 -> 1749.37 | E6: ='Data Sheet'!E17-'Data Sheet'!E18 -> 1970.79 | F6: ='Data Sheet'!F17-'Data Sheet'!F18 -> 2055.28 | G6: ='Data Sheet'!G17-'Data Sheet'!G18 -> 2254.99 | H6: ='Data Sheet'!H17-'Data Sheet'!H18 -> 2818.54 | I6: ='Data Sheet'!I17-'Data Sheet'!I18 -> 3105.88 | J6: ='Data Sheet'!J17-'Data Sheet'!J18 -> 3034.65 | K6: ='Data Sheet'!K17-'Data Sheet'!K18 -> 3230.29
A7: EBIT | B7: ='Data Sheet'!B28+'Data Sheet'!B27 -> 115.97 | C7: ='Data Sheet'!C28+'Data Sheet'!C27 -> 193.24 | D7: ='Data Sheet'!D28+'Data Sheet'!D27 -> 161.92 | E7: ='Data Sheet'!E28+'Data Sheet'!E27 -> 214.04 | F7: ='Data Sheet'!F28+'Data Sheet'!F27 -> 221.11 | G7: ='Data Sheet'!G28+'Data Sheet'!G27 -> 145.08 | H7: ='Data Sheet'!H28+'Data Sheet'!H27 -> 251.19 | I7: ='Data Sheet'!I28+'Data Sheet'!I27 -> 297.29 | J7: ='Data Sheet'!J28+'Data Sheet'!J27 -> 324.14 | K7: ='Data Sheet'!K28+'Data Sheet'!K27 -> 356.42
A8: EBITDA | B8: ='Calculated Data'!B7+'Data Sheet'!B26 -> 180.12 | C8: ='Calculated Data'!C7+'Data Sheet'!C26 -> 279.32 | D8: ='Calculated Data'!D7+'Data Sheet'!D26 -> 258.05 | E8: ='Calculated Data'!E7+'Data Sheet'!E26 -> 301.3 | F8: ='Calculated Data'!F7+'Data Sheet'!F26 -> 310.19 | G8: ='Calculated Data'!G7+'Data Sheet'!G26 -> 234.34 | H8: ='Calculated Data'!H7+'Data Sheet'!H26 -> 339.59 | I8: ='Calculated Data'!I7+'Data Sheet'!I26 -> 372.99 | J8: ='Calculated Data'!J7+'Data Sheet'!J26 -> 396.32 | K8: ='Calculated Data'!K7+'Data Sheet'!K26 -> 422.62
A9: Operating Profit (excl Other Income) | B9: =B8-'Data Sheet'!B25 -> 166.82 | C9: =C8-'Data Sheet'!C25 -> 234.37 | D9: =D8-'Data Sheet'!D25 -> 187.17 | E9: =E8-'Data Sheet'!E25 -> 277.8 | F9: =F8-'Data Sheet'!F25 -> 289.56 | G9: =G8-'Data Sheet'!G25 -> 195.69 | H9: =H8-'Data Sheet'!H25 -> 293.19 | I9: =I8-'Data Sheet'!I25 -> 370.99 | J9: =J8-'Data Sheet'!J25 -> 389.8 | K9: =K8-'Data Sheet'!K25 -> 413.18
A10: PAT | B10: ='Data Sheet'!B30 -> 97.25 | C10: ='Data Sheet'!C30 -> 131.56 | D10: ='Data Sheet'!D30 -> 30.67 | E10: ='Data Sheet'!E30 -> 136.07 | F10: ='Data Sheet'!F30 -> 138.51 | G10: ='Data Sheet'!G30 -> 62.03 | H10: ='Data Sheet'!H30 -> 146.59 | I10: ='Data Sheet'!I30 -> 192.96 | J10: ='Data Sheet'!J30 -> 234.32 | K10: ='Data Sheet'!K30 -> 264.97
A11: Dividend | B11: ='Data Sheet'!B31 -> 0 | C11: ='Data Sheet'!C31 -> 0 | D11: ='Data Sheet'!D31 -> 0 | E11: ='Data Sheet'!E31 -> 0 | F11: ='Data Sheet'!F31 -> 0 | G11: ='Data Sheet'!G31 -> 0 | H11: ='Data Sheet'!H31 -> 0 | I11: ='Data Sheet'!I31 -> 0 | J11: ='Data Sheet'!J31 -> 0 | K11: ='Data Sheet'!K31 -> 0
B12: =B5 -> 2007-03-31 | C12: =C5 -> 2008-03-31 | D12: =D5 -> 2009-03-31 | E12: =E5 -> 2010-03-31 | F12: =F5 -> 2011-03-31 | G12: =G5 -> 2012-03-31 | H12: =H5 -> 2013-03-31 | I12: =I5 -> 2014-03-31 | J12: =J5 -> 2015-03-31 | K12: =K5 -> 2016-03-31
A13: Networth | B13: ='Data Sheet'!B57+'Data Sheet'!B58 -> 1066.55 | C13: ='Data Sheet'!C57+'Data Sheet'!C58 -> 740.04 | D13: ='Data Sheet'!D57+'Data Sheet'!D58 -> 1379.43 | E13: ='Data Sheet'!E57+'Data Sheet'!E58 -> 1424.02 | F13: ='Data Sheet'!F57+'Data Sheet'!F58 -> 1422.72 | G13: ='Data Sheet'!G57+'Data Sheet'!G58 -> 1429.89 | H13: ='Data Sheet'!H57+'Data Sheet'!H58 -> 1713.63 | I13: ='Data Sheet'!I57+'Data Sheet'!I58 -> 2091.43 | J13: ='Data Sheet'!J57+'Data Sheet'!J58 -> 2088.62 | K13: ='Data Sheet'!K57+'Data Sheet'!K58 -> 2425.09
A14: Working Capital | B14: ='Data Sheet'!B65-'Data Sheet'!B60 -> 426.75 | C14: ='Data Sheet'!C65-'Data Sheet'!C60 -> -137.51 | D14: ='Data Sheet'!D65-'Data Sheet'!D60 -> 258.51 | E14: ='Data Sheet'!E65-'Data Sheet'!E60 -> 424.95 | F14: ='Data Sheet'!F65-'Data Sheet'!F60 -> 509.31 | G14: ='Data Sheet'!G65-'Data Sheet'!G60 -> 955.03 | H14: ='Data Sheet'!H65-'Data Sheet'!H60 -> 471.1 | I14: ='Data Sheet'!I65-'Data Sheet'!I60 -> 544.11 | J14: ='Data Sheet'!J65-'Data Sheet'!J60 -> 594.25 | K14: ='Data Sheet'!K65-'Data Sheet'!K60 -> 635.97
A15: Invested Capital | B15: ='Data Sheet'!B62+'Data Sheet'!B63+'Calculated Data'!B14 -> 1148.89 | C15: ='Data Sheet'!C62+'Data Sheet'!C63+'Calculated Data'!C14 -> 1973.1 | D15: ='Data Sheet'!D62+'Data Sheet'!D63+'Calculated Data'!D14 -> 2772.17 | E15: ='Data Sheet'!E62+'Data Sheet'!E63+'Calculated Data'!E14 -> 2681.34 | F15: ='Data Sheet'!F62+'Data Sheet'!F63+'Calculated Data'!F14 -> 2783.06 | G15: ='Data Sheet'!G62+'Data Sheet'!G63+'Calculated Data'!G14 -> 3461.61 | H15: ='Data Sheet'!H62+'Data Sheet'!H63+'Calculated Data'!H14 -> 2987.36 | I15: ='Data Sheet'!I62+'Data Sheet'!I63+'Calculated Data'!I14 -> 3274.94 | J15: ='Data Sheet'!J62+'Data Sheet'!J63+'Calculated Data'!J14 -> 3046.65 | K15: ='Data Sheet'!K62+'Data Sheet'!K63+'Calculated Data'!K14 -> 3245.87
A16: Capital Employed | B16: =B13+'Data Sheet'!B59 -> 1264.14 | C16: =C13+'Data Sheet'!C59 -> 1995.22 | D16: =D13+'Data Sheet'!D59 -> 2773.99 | E16: =E13+'Data Sheet'!E59 -> 2781.87 | F16: =F13+'Data Sheet'!F59 -> 2915.99 | G16: =G13+'Data Sheet'!G59 -> 3541.64 | H16: =H13+'Data Sheet'!H59 -> 2990.04 | I16: =I13+'Data Sheet'!I59 -> 3280.18 | J16: =J13+'Data Sheet'!J59 -> 3120.02 | K16: =K13+'Data Sheet'!K59 -> 3331.02
A17: Total Assets | B17: ='Data Sheet'!B61 -> 1417.75 | C17: ='Data Sheet'!C61 -> 2637.19 | D17: ='Data Sheet'!D61 -> 3101.77 | E17: ='Data Sheet'!E61 -> 3069.11 | F17: ='Data Sheet'!F61 -> 3325.46 | G17: ='Data Sheet'!G61 -> 4045.35 | H17: ='Data Sheet'!H61 -> 3502.53 | I17: ='Data Sheet'!I61 -> 3825.07 | J17: ='Data Sheet'!J61 -> 3591.78 | K17: ='Data Sheet'!K61 -> 3862.4
B18: =B5 -> 2007-03-31 | C18: =C5 -> 2008-03-31 | D18: =D5 -> 2009-03-31 | E18: =E5 -> 2010-03-31 | F18: =F5 -> 2011-03-31 | G18: =G5 -> 2012-03-31 | H18: =H5 -> 2013-03-31 | I18: =I5 -> 2014-03-31 | J18: =J5 -> 2015-03-31 | K18: =K5 -> 2016-03-31
A19: Operating Cash Flow | B19: ='Data Sheet'!B82 -> 91.37 | C19: ='Data Sheet'!C82 -> 226.85 | D19: ='Data Sheet'!D82 -> 174.71 | E19: ='Data Sheet'!E82 -> 171.57 | F19: ='Data Sheet'!F82 -> 245.7 | G19: ='Data Sheet'!G82 -> 5.68 | H19: ='Data Sheet'!H82 -> 199.28 | I19: ='Data Sheet'!I82 -> 395.57 | J19: ='Data Sheet'!J82 -> 246.05 | K19: ='Data Sheet'!K82 -> 299.73
A20: Capex | C20: =('Data Sheet'!C62-'Data Sheet'!B62)+('Data Sheet'!C63-'Data Sheet'!B63)+'Data Sheet'!C26 -> 1474.55 | D20: =('Data Sheet'!D62-'Data Sheet'!C62)+('Data Sheet'!D63-'Data Sheet'!C63)+'Data Sheet'!D26 -> 499.18 | E20: =('Data Sheet'!E62-'Data Sheet'!D62)+('Data Sheet'!E63-'Data Sheet'!D63)+'Data Sheet'!E26 -> -170.01 | F20: =('Data Sheet'!F62-'Data Sheet'!E62)+('Data Sheet'!F63-'Data Sheet'!E63)+'Data Sheet'!F26 -> 106.44 | G20: =('Data Sheet'!G62-'Data Sheet'!F62)+('Data Sheet'!G63-'Data Sheet'!F63)+'Data Sheet'!G26 -> 322.09 | H20: =('Data Sheet'!H62-'Data Sheet'!G62)+('Data Sheet'!H63-'Data Sheet'!G63)+'Data Sheet'!H26 -> 98.08 | I20: =('Data Sheet'!I62-'Data Sheet'!H62)+('Data Sheet'!I63-'Data Sheet'!H63)+'Data Sheet'!I26 -> 290.27 | J20: =('Data Sheet'!J62-'Data Sheet'!I62)+('Data Sheet'!J63-'Data Sheet'!I63)+'Data Sheet'!J26 -> -206.25 | K20: =('Data Sheet'!K62-'Data Sheet'!J62)+('Data Sheet'!K63-'Data Sheet'!J63)+'Data Sheet'!K26 -> 223.7 | L20: CHECK? | M20: derived from BS
A21: Free Cash Flow | C21: =C19-C20 -> -1247.7 | D21: =D19-D20 -> -324.47 | E21: 341.58 | F21: 139.26 | G21: -316.41 | H21: 101.2 | I21: 105.3 | J21: 452.3 | K21: 76.03
A22: Tax Rate | B22: ='Data Sheet'!B29/'Data Sheet'!B28 -> 0.05855987528 | C22: ='Data Sheet'!C29/'Data Sheet'!C28 -> 0.08834415811 | D22: ='Data Sheet'!D29/'Data Sheet'!D28 -> 0.392779641 | E22: ='Data Sheet'!E29/'Data Sheet'!E28 -> 0.1482937176 | F22: ='Data Sheet'!F29/'Data Sheet'!F28 -> 0.1992584141 | G22: ='Data Sheet'!G29/'Data Sheet'!G28 -> 0.1812319031 | H22: ='Data Sheet'!H29/'Data Sheet'!H28 -> 0.08116087694 | I22: ='Data Sheet'!I29/'Data Sheet'!I28 -> 0.04963597009 | J22: ='Data Sheet'!J29/'Data Sheet'!J28 -> 0.03909515613 | K22: ='Data Sheet'!K29/'Data Sheet'!K28 -> 0.1021920032
A23: NOPLAT | B23: =B7*(1-B22) -> 109.1788113 | C23: 176.1683749 | D23: 98.32112054 | E23: 182.2992127 | F23: 177.051972 | G23: 118.7868755 | H23: 230.8031993 | I23: 282.5337225 | J23: 311.4676961 | K23: 319.9967262
A24: RoIC | B24: =(B7/B15)*(1-B22) -> 0.09502982119 | C24: =(C7/C15)*(1-C22) -> 0.08928507166 | D24: 0.03546720459 | E24: 0.06798810023 | F24: 0.06361773445 | G24: 0.03431549929 | H24: 0.07725992158 | I24: 0.08627141946 | J24: 0.1022328446 | K24: 0.09858581095
A25: WACC | B25: 0.12 | C25: 0.12 | D25: 0.12 | E25: 0.12 | F25: 0.12 | G25: 0.12 | H25: 0.12 | I25: 0.12 | J25: 0.12 | K25: 0.12
A26: EPA (Economic Profit Added) | B26: =B15*(B24-B25) -> -28.68798874 | C26: =C15*(C24-C25) -> -60.60362511 | D26: -234.3392795 | E26: -139.4615873 | F26: -156.915228 | G26: -296.6063245 | H26: -127.6800007 | I26: -110.4590775 | J26: -54.13030391 | K26: -69.5076738
A27: RoIIC | D27: =(D23-C23)/(C15-B15) -> -0.09445075205 | E27: =(E23-D23)/(D15-C15) -> 0.1050947879 | F27: 0.05776990674 | G27: -0.5727988257 | H27: 0.1650819009 | I27: -0.1090785938 | J27: 0.100611912 | K27: -0.03736050686
A28: 3Yr Rolling RoIIC | G28: =(G23-D23)/(F15-C15) -> 0.02526761193 | H28: 0.07035273069 | I28: 0.3446890739 | J28: 0.3917232264 | K28: =(K23-H23)/(J15-G15) -> -0.2149448787
A29: 5Yr Rolling RoIIC | H29: =(H23-C23)/(G15-B15) -> 0.02362362259 | I29: =(I23-D23)/(H15-C15) -> 0.1816226627 | J29: 0.2569136651 | K29: =(K23-F23)/(J15-E15) -> 0.3912971289
B30: =B5 -> 2007-03-31 | C30: =C5 -> 2008-03-31 | D30: =D5 -> 2009-03-31 | E30: =E5 -> 2010-03-31 | F30: =F5 -> 2011-03-31 | G30: =G5 -> 2012-03-31 | H30: =H5 -> 2013-03-31 | I30: =I5 -> 2014-03-31 | J30: =J5 -> 2015-03-31 | K30: =K5 -> 2016-03-31 | L30: CURRENT
A31: MktCap | B31: ='Data Sheet'!B90*'Data Sheet'!B93 -> 3285.051439 | C31: ='Data Sheet'!C90*'Data Sheet'!C93 -> 1771.212236 | D31: ='Data Sheet'!D90*'Data Sheet'!D93 -> 740.3399602 | E31: ='Data Sheet'!E90*'Data Sheet'!E93 -> 1319.819772 | F31: ='Data Sheet'!F90*'Data Sheet'!F93 -> 835.0074349 | G31: ='Data Sheet'!G90*'Data Sheet'!G93 -> 420.4376756 | H31: ='Data Sheet'!H90*'Data Sheet'!H93 -> 705.0262611 | I31: ='Data Sheet'!I90*'Data Sheet'!I93 -> 1907.953273 | J31: ='Data Sheet'!J90*'Data Sheet'!J93 -> 2100.81697 | K31: ='Data Sheet'!K90*'Data Sheet'!K93 -> 2437.399981 | L31: ='Data Sheet'!B9 -> 2918.96
A32: MktCap+Dividend | B32: =B31+'Data Sheet'!B31 -> 3285.051439 | C32: =C31+'Data Sheet'!C31 -> 1771.212236 | D32: =D31+'Data Sheet'!D31 -> 740.3399602 | E32: =E31+'Data Sheet'!E31 -> 1319.819772 | F32: =F31+'Data Sheet'!F31 -> 835.0074349 | G32: =G31+'Data Sheet'!G31 -> 420.4376756 | H32: =H31+'Data Sheet'!H31 -> 705.0262611 | I32: =I31+'Data Sheet'!I31 -> 1907.953273 | J32: =J31+'Data Sheet'!J31 -> 2100.81697 | K32: =K31+'Data Sheet'!K31 -> 2437.399981
A33: Retained Profit | B33: ='Data Sheet'!B30-'Data Sheet'!B31 -> 97.25 | C33: ='Data Sheet'!C30-'Data Sheet'!C31 -> 131.56 | D33: ='Data Sheet'!D30-'Data Sheet'!D31 -> 30.67 | E33: ='Data Sheet'!E30-'Data Sheet'!E31 -> 136.07 | F33: ='Data Sheet'!F30-'Data Sheet'!F31 -> 138.51 | G33: ='Data Sheet'!G30-'Data Sheet'!G31 -> 62.03 | H33: ='Data Sheet'!H30-'Data Sheet'!H31 -> 146.59 | I33: ='Data Sheet'!I30-'Data Sheet'!I31 -> 192.96 | J33: ='Data Sheet'!J30-'Data Sheet'!J31 -> 234.32 | K33: ='Data Sheet'!K30-'Data Sheet'!K31 -> 264.97
A34: EV | B34: =B31+'Data Sheet'!B59-'Data Sheet'!B69 -> 3170.061439 | C34: =C31+'Data Sheet'!C59-'Data Sheet'!C69 -> 2920.482236 | D34: =D31+'Data Sheet'!D59-'Data Sheet'!D69 -> 2038.20996 | E34: =E31+'Data Sheet'!E59-'Data Sheet'!E69 -> 2546.449772 | F34: =F31+'Data Sheet'!F59-'Data Sheet'!F69 -> 2003.857435 | G34: =G31+'Data Sheet'!G59-'Data Sheet'!G69 -> 1849.317676 | H34: =H31+'Data Sheet'!H59-'Data Sheet'!H69 -> 1891.336261 | I34: =I31+'Data Sheet'!I59-'Data Sheet'!I69 -> 2910.383273 | J34: =J31+'Data Sheet'!J59-'Data Sheet'!J69 -> 3051.98697 | K34: =K31+'Data Sheet'!K59-'Data Sheet'!K69 -> 3274.419981
B35: =B5 -> 2007-03-31 | C35: =C5 -> 2008-03-31 | D35: =D5 -> 2009-03-31 | E35: =E5 -> 2010-03-31 | F35: =F5 -> 2011-03-31 | G35: =G5 -> 2012-03-31 | H35: =H5 -> 2013-03-31 | I35: =I5 -> 2014-03-31 | J35: =J5 -> 2015-03-31 | K35: =K5 -> 2016-03-31
A36: Price/Earnings | B36: =B31/'Data Sheet'!B30 -> 33.77944925 | C36: =C31/'Data Sheet'!C30 -> 13.46315169 | D36: =D31/'Data Sheet'!D30 -> 24.13889665 | E36: =E31/'Data Sheet'!E30 -> 9.699564725 | F36: =F31/'Data Sheet'!F30 -> 6.028499277 | G36: =G31/'Data Sheet'!G30 -> 6.777973168 | H36: =H31/'Data Sheet'!H30 -> 4.809511297 | I36: =I31/'Data Sheet'!I30 -> 9.887817542 | J36: =J31/'Data Sheet'!J30 -> 8.965589665 | K36: =K31/'Data Sheet'!K30 -> 9.19877715
A37: Price/Book | B37: =B31/B13 -> 3.080072607 | C37: 2.393400675 | D37: 0.5366999124 | E37: 0.9268267104 | F37: 0.5869091844 | G37: 0.2940349787 | H37: 0.4114226881 | I37: 0.9122721167 | J37: 1.005839727 | K37: 1.005076093
A38: Price/CashFlow | B38: =B31/B19 -> 35.95328269 | C38: 7.80785645 | D38: 4.237536261 | E38: 7.692602274 | F38: 3.398483659 | G38: 74.02071754 | H38: 3.537867629 | I38: 4.823301244 | J38: 8.538170982 | K38: 8.131985392
A39: Price/Sales | B39: =B31/'Data Sheet'!B17 -> 3.953035354 | C39: =C31/'Data Sheet'!C17 -> 1.363740278 | D39: =D31/'Data Sheet'!D17 -> 0.4232037592 | E39: =E31/'Data Sheet'!E17 -> 0.669690719 | F39: =F31/'Data Sheet'!F17 -> 0.4062742959 | G39: =G31/'Data Sheet'!G17 -> 0.1864476896 | H39: =H31/'Data Sheet'!H17 -> 0.2501388169 | I39: =I31/'Data Sheet'!I17 -> 0.6143036025 | J39: =J31/'Data Sheet'!J17 -> 0.6922765295 | K39: =K31/'Data Sheet'!K17 -> 0.7545452518
A40: EV/EBITDA | B40: =B34/B8 -> 17.5997193 | C40: 10.45568608 | D40: 7.898507887 | E40: 8.451542556 | F40: 6.460096827 | G40: 7.891600562 | H40: 5.569469834 | I40: 7.802845312 | J40: 7.700814923 | K40: 7.747905876
A41: Dividend Yield | B41: ='Data Sheet'!B31/'Calculated Data'!B31 -> 0 | C41: ='Data Sheet'!C31/'Calculated Data'!C31 -> 0 | D41: ='Data Sheet'!D31/'Calculated Data'!D31 -> 0 | E41: ='Data Sheet'!E31/'Calculated Data'!E31 -> 0 | F41: ='Data Sheet'!F31/'Calculated Data'!F31 -> 0 | G41: ='Data Sheet'!G31/'Calculated Data'!G31 -> 0 | H41: ='Data Sheet'!H31/'Calculated Data'!H31 -> 0 | I41: ='Data Sheet'!I31/'Calculated Data'!I31 -> 0 | J41: ='Data Sheet'!J31/'Calculated Data'!J31 -> 0 | K41: ='Data Sheet'!K31/'Calculated Data'!K31 -> 0
B42: =B5 -> 2007-03-31 | C42: =C5 -> 2008-03-31 | D42: =D5 -> 2009-03-31 | E42: =E5 -> 2010-03-31 | F42: =F5 -> 2011-03-31 | G42: =G5 -> 2012-03-31 | H42: =H5 -> 2013-03-31 | I42: =I5 -> 2014-03-31 | J42: =J5 -> 2015-03-31 | K42: =K5 -> 2016-03-31 | L42: Z-Weights
A43: Working Capital/Total Assets | B43: =B14/B17 -> 0.3010051137 | C43: -0.0521426215 | D43: 0.08334273657 | E43: 0.1384603354 | F43: 0.1531547515 | G43: 0.2360809324 | H43: 0.1345027737 | I43: 0.1422483772 | J43: 0.1654472156 | K43: 0.1646566901 | L43: 1.2
A44: Retained Profits/Total Assets | B44: =B33/B17 -> 0.06859460413 | C44: 0.04988643215 | D44: 0.009887902714 | E44: 0.04433532848 | F44: 0.04165138056 | G44: 0.01533365469 | H44: 0.04185260369 | I44: 0.05044613563 | J44: 0.06523784864 | K44: 0.06860242336 | L44: 1.4
A45: EBIT/Total Assets | B45: =B7/B17 -> 0.08179862458 | C45: 0.07327496312 | D45: 0.05220245215 | E45: 0.06974008752 | F45: 0.0664900495 | G45: 0.03586339872 | H45: 0.07171673048 | I45: 0.07772145346 | J45: 0.09024494819 | K45: 0.09227941176 | L45: 3.3
A46: Market Cap/Total Liabilities | B46: =B31/B17 -> 2.317087949 | C46: =C31/C17 -> 0.6716286031 | D46: 0.2386830617 | E46: 0.4300333882 | F46: 0.2510953176 | G46: 0.1039311001 | H46: 0.2012905703 | I46: 0.4988021848 | J46: 0.5848957815 | K46: 0.6310584045 | L46: 0.6
A47: Sales/Total Assets | B47: ='Data Sheet'!B17/'Calculated Data'!B17 -> 0.5861541174 | C47: ='Data Sheet'!C17/'Calculated Data'!C17 -> 0.4924901126 | D47: ='Data Sheet'!D17/'Calculated Data'!D17 -> 0.5639908826 | E47: ='Data Sheet'!E17/'Calculated Data'!E17 -> 0.6421372971 | F47: ='Data Sheet'!F17/'Calculated Data'!F17 -> 0.6180438195 | G47: ='Data Sheet'!G17/'Calculated Data'!G17 -> 0.5574276639 | H47: ='Data Sheet'!H17/'Calculated Data'!H17 -> 0.8047154485 | I47: ='Data Sheet'!I17/'Calculated Data'!I17 -> 0.8119799115 | J47: ='Data Sheet'!J17/'Calculated Data'!J17 -> 0.8448874931 | K47: ='Data Sheet'!K17/'Calculated Data'!K17 -> 0.8363426885 | L47: 1
A48: Altman Z-Score | B48: =$L$43*B43+$L$44*B44+$L$45*B45+$L$46*B46+$L$47*B47 -> 2.70358093 | C48: =$L$43*C43+$L$44*C44+$L$45*C45+$L$46*C46+$L$47*C47 -> 1.144544512 | D48: 0.9933231594 | E48: 1.358521481 | F48: 1.230215808 | G48: 1.042899775 | H48: 1.382151975 | I48: 1.609064661 | J48: 1.783502938 | K48: 1.813131211
A49: Z > 2.99 -“Safe” Zones
A50: 1.81 < Z < 2.99 -“Grey” Zones
A51: Z < 1.81 -“Distress” Zones

Sheet Sheet1
